Workbook

Sheet Январь2012
B2: Клиенты Участников торгов Фондовой биржи ММВБ
B3: 2012-01-01
B6: Динамика количества клиентов за | C6: =B3 -> 2012-01-01
B10: Количество зарегистрированных клиентов в Системе торгов: | H10: Таблица 1
B11: Группы клиентов | E11: 2011-12-01 | F11: 2012-01-01 | G11: Изменение (ед.) | H11: Изменение (%)
B12: Физические лица | E12: 954591 | F12: 964377 | G12: =F12-E12 -> 9786 | H12: =F12/E12-1 -> 0.01025151086
B13: Юридические лица | E13: 32930 | F13: 33291 | G13: =F13-E13 -> 361 | H13: =F13/E13-1 -> 0.01096264804
B14: Нерезиденты | E14: 9804 | F14: 10654 | G14: =F14-E14 -> 850 | H14: =F14/E14-1 -> 0.08669930641
B15: Нерезиденты - физические лица | E15: 1845 | F15: 1867 | G15: 22 | H15: 0.011924119
B16: Нерезиденты - юридические лица | E16: 7959 | F16: 8787 | G16: 828 | H16: 0.10403317
B17: Клиенты, передавшие свои средства в ДУ | E17: 16681 | F17: 16797 | G17: =F17-E17 -> 116 | H17: =F17/E17-1 -> 0.006954019543
B18: Всего | E18: 1014006 | F18: 1025119 | G18: =F18-E18 -> 11113 | H18: =F18/E18-1 -> 0.01095950123
B21: Количество уникальных клиентов в Системе торгов: | H21: Таблица 2
B22: Группы клиентов | E22: =E11 -> 2011-12-01 | F22: =F11 -> 2012-01-01 | G22: Изменение (ед.) | H22: Изменение (%)
B23: Физические лица | E23: 772175 | F23: 779514 | G23: =F23-E23 -> 7339 | H23: =F23/E23-1 -> 0.009504322207
B24: Юридические лица | E24: 16850 | F24: 17011 | G24: =F24-E24 -> 161 | H24: =F24/E24-1 -> 0.009554896142
B25: Нерезиденты | E25: 5058 | F25: 5180 | G25: =F25-E25 -> 122 | H25: =F25/E25-1 -> 0.02412020561
B26: Нерезиденты - физические лица | E26: 1799 | F26: 1820 | G26: 21 | H26: 0.01167315175
B27: Нерезиденты - юридические лица | E27: 3259 | F27: 3360 | G27: 101 | H27: 0.03099110156
B28: Клиенты, передавшие свои средства в ДУ | E28: 5242 | F28: 5257 | G28: =F28-E28 -> 15 | H28: =F28/E28-1 -> 0.002861503243
B29: Всего | E29: 799325 | F29: 806962 | G29: =F29-E29 -> 7637 | H29: =F29/E29-1 -> 0.00955431145
B32: Количество активных клиентов в Системе торгов (совершивших в течение месяца хотя бы одну сделку): | H32: Таблица 3
B33: Группы клиентов | E33: =EDATE(C6,-1) -> 2011-12-01 | F33: =EDATE(E33,1) -> 2012-01-01 | G33: Изменение (ед.) | H33: Изменение (%)
B34: Физические лица | E34: 93209 | F34: 88477 | G34: =F34-E34 -> -4732 | H34: =F34/E34-1 -> -0.05076762974
B35: Юридические лица | E35: 1775 | F35: 1488 | G35: =F35-E35 -> -287 | H35: =F35/E35-1 -> -0.1616901408
B36: Нерезиденты | E36: 686 | F36: 616 | G36: =F36-E36 -> -70 | H36: =F36/E36-1 -> -0.1020408163
B37: Нерезиденты - физические лица | E37: 201 | F37: 194 | G37: -7 | H37: -0.03482587065
B38: Нерезиденты - юридические лица | E38: 485 | F38: 422 | G38: -63 | H38: -0.1298969072
B39: Клиенты, передавшие свои средства в ДУ | E39: 1486 | F39: 1366 | G39: =F39-E39 -> -120 | H39: =F39/E39-1 -> -0.08075370121
B40: Всего | E40: 97156 | F40: 91947 | G40: =F40-E40 -> -5209 | H40: =F40/E40-1 -> -0.05361480506
B44: Изменение количества уникальных клиентов - ретроспективные данные
B48: Количество уникальных клиентов в Системе торгов (ежегодная статистика): | H48: Таблица 1
B49: Группы клиентов | E49: 2008-12-31 | F49: 2009-12-31 | G49: 2010-12-31 | H49: 2011-12-31
B50: Физические лица | E50: 559320 | F50: 671475 | G50: 714295 | H50: 772175
B51: Юридические лица | E51: 14748 | F51: 16364 | G51: 17170 | H51: 16850
B52: Нерезиденты | E52: 3097 | F52: 3851 | G52: 4295 | H52: 5058
B53: Клиенты, передавшие свои средства в ДУ | E53: 4512 | F53: 4717 | G53: 5348 | H53: 5242
B54: Всего | E54: 581677 | F54: 696407 | G54: 741108 | H54: 799325
B82: Количество уникальных клиентов в Системе торгов (за последние 6 месяцев): | H82: Таблица 2
B83: Группы клиентов | C83: 2011-08-31 | D83: 2011-09-30 | E83: 2011-10-31 | F83: 2011-11-30 | G83: 2011-12-31 | H83: 2012-01-30
B84: Физические лица | C84: 760620 | D84: 756182 | E84: 767680 | F84: 774773 | G84: 772175 | H84: =IF(G83,F23,0) -> 779514
B85: Юридические лица | C85: 17914 | D85: 16858 | E85: 17003 | F85: 17114 | G85: 16850 | H85: =IF(G84,F24,0) -> 17011
B86: Нерезиденты | C86: 3165 | D86: 2939 | E86: 2972 | F86: 3002 | G86: 5058 | H86: =IF(G85,F25,0) -> 5180
B87: Клиенты, передавшие свои средства в ДУ | C87: 5845 | D87: 5301 | E87: 5439 | F87: 5463 | G87: 5242 | H87: =IF(G86,F28,0) -> 5257
B88: Всего | C88: 789701 | D88: 783477 | E88: 795338 | F88: 802636 | G88: 799325 | H88: =IF(G87,F29,0) -> 806962
B124: Дополнительные показатели за | C124: 2012-01-31
H127: Таблица 1
B128: Участники торгов | G128: Абсолютные показатели
B129: Количество Участников торгов, имеющих зарегистрированных клиентов | G129: 739
B130: Количество Участников торгов, имеющих уникальных клиентов | G130: 739
B131: Количество Участников торгов, имеющих активных клиентов | G131: 456
B135: Списки ведущих операторов фондового рынка - клиенты Участников торгов за | F135: =C6 -> 2012-01-01
B138: Ведущие операторы рынка – число зарегистрированных клиентов | H138: Таблица 1
B139: Наименование Участника торгов | G139: Количество клиентов
B140: Сбербанк России ОАО | G140: 189 072
B141: ВТБ 24 (ЗАО) | G141: 171 165
B142: ЗАО "ФИНАМ" | G142: 109 207
B143: ООО "Компания БКС" | G143: 95 008
B144: ОАО "АЛЬФА-БАНК" | G144: 56 306
B145: ООО "АТОН" | G145: 40 231
B146: ФК "ОТКРЫТИЕ" | G146: 26 612
B147: ГК "АЛОР" | G147: 19 035
B148: ООО "Инвестиционная палата" | G148: 18 706
B149: КИТ Финанс (ООО) | G149: 18 602
B152: Ведущие операторы рынка – число активных клиентов | H152: Таблица 2
B153: Наименование Участника торгов | G153: Количество клиентов
B154: ЗАО "ФИНАМ" | G154: 18 047
B155: ООО "Компания БКС" | G155: 14 914
B156: Сбербанк России ОАО | G156: 12 992
B157: ВТБ 24 (ЗАО) | G157: 8 850
B158: ОАО "АЛЬФА-БАНК" | G158: 5 865
B159: ООО "АТОН" | G159: 5 680
B160: ФК "ОТКРЫТИЕ" | G160: 3 375
B161: КИТ Финанс (ООО) | G161: 2 489
B162: ГК "АЛОР" | G162: 2 276
B163: ООО "НЭТТРЭЙДЕР" | G163: 1 579
B166: Ведущие операторы рынка – объем клиентских операций | H166: Таблица 3
B167: Наименование Участника торгов | G167: Торговый оборот, руб.
B168: ЗАО ИК "Тройка Диалог" | G168: 928 909 986 093
B169: ИК ”Ренессанс Капитал” | G169: 756 791 310 063
B170: ФК "ОТКРЫТИЕ" | G170: 534 781 986 103
B171: ОАО "Промсвязьбанк" | G171: 451 120 751 066
B172: ЗАО "ФИНАМ" | G172: 381 706 975 857
B173: ООО "Компания БКС" | G173: 321 828 369 686
B174: ООО "АТОН" | G174: 217 222 805 057
B175: ГК "АЛОР" | G175: 155 589 616 549
B176: ВТБ 24 (ЗАО) | G176: 113 927 604 271
B177: ООО "ИК ВЕЛЕС Капитал" | G177: 103 399 232 313

Sheet Февраль2012
B2: Клиенты Участников торгов Фондовой биржи ММВБ
B3: =EDATE(Январь2012!B3,1) -> 2012-02-01
B6: Динамика количества клиентов за | C6: =B3 -> 2012-02-01
B10: Количество зарегистрированных клиентов в Системе торгов: | H10: Таблица 1
B11: Группы клиентов | E11: 2012-01-31 | F11: =EDATE(E11,1) -> 2012-02-29 | G11: Изменение (ед.) | H11: Изменение (%)
B12: Физические лица | E12: 964377 | F12: 968945 | G12: =F12-E12 -> 4568 | H12: =F12/E12-1 -> 0.004736736774
B13: Юридические лица | E13: 33291 | F13: 33334 | G13: =F13-E13 -> 43 | H13: =F13/E13-1 -> 0.001291640383
B14: Нерезиденты | E14: 10654 | F14: 10792 | G14: =F14-E14 -> 138 | H14: =F14/E14-1 -> 0.01295288155
B15: Нерезиденты - физические лица | E15: 1867 | F15: 1890 | G15: 23 | H15: 0.01231922871
B16: Нерезиденты - юридические лица | E16: 8787 | F16: 8902 | G16: 115 | H16: 0.01308751565
B17: Клиенты, передавшие свои средства в ДУ | E17: 16797 | F17: 16802 | G17: =F17-E17 -> 5 | H17: =F17/E17-1 -> 0.0002976722034
B18: Всего | E18: 1025119 | F18: 1029873 | G18: =F18-E18 -> 4754 | H18: =F18/E18-1 -> 0.004637510377
B21: Количество уникальных клиентов в Системе торгов: | H21: Таблица 2
B22: Группы клиентов | E22: =E11 -> 2012-01-31 | F22: =F11 -> 2012-02-29 | G22: Изменение (ед.) | H22: Изменение (%)
B23: Физические лица | E23: 779514 | F23: 782553 | G23: =F23-E23 -> 3039 | H23: =F23/E23-1 -> 0.003898582963
B24: Юридические лица | E24: 17011 | F24: 17054 | G24: =F24-E24 -> 43 | H24: =F24/E24-1 -> 0.002527776145
B25: Нерезиденты | E25: 5180 | F25: 5224 | G25: =F25-E25 -> 44 | H25: =F25/E25-1 -> 0.008494208494
B26: Нерезиденты - физические лица | E26: 1820 | F26: 1842 | G26: 22 | H26: 0.01208791209
B27: Нерезиденты - юридические лица | E27: 3360 | F27: 3382 | G27: 22 | H27: 0.006547619048
B28: Клиенты, передавшие свои средства в ДУ | E28: 5257 | F28: 5274 | G28: =F28-E28 -> 17 | H28: =F28/E28-1 -> 0.003233783527
B29: Всего | E29: 806962 | F29: 810105 | G29: =F29-E29 -> 3143 | H29: =F29/E29-1 -> 0.003894855024
B32: Количество активных клиентов в Системе торгов (совершивших в течение месяца хотя бы одну сделку): | H32: Таблица 3
B33: Группы клиентов | E33: =EDATE(C6,-1) -> 2012-01-01 | F33: =EDATE(E33,1) -> 2012-02-01 | G33: Изменение (ед.) | H33: Изменение (%)
B34: Физические лица | E34: 88477 | F34: 91762 | G34: =F34-E34 -> 3285 | H34: =F34/E34-1 -> 0.03712829323
B35: Юридические лица | E35: 1488 | F35: 1629 | G35: =F35-E35 -> 141 | H35: =F35/E35-1 -> 0.09475806452
B36: Нерезиденты | E36: 616 | F36: 705 | G36: =F36-E36 -> 89 | H36: =F36/E36-1 -> 0.1444805195
B37: Нерезиденты - физические лица | E37: 194 | F37: 213 | G37: 19 | H37: 0.09793814433
B38: Нерезиденты - юридические лица | E38: 422 | F38: 492 | G38: 70 | H38: 0.1658767773
B39: Клиенты, передавшие свои средства в ДУ | E39: 1366 | F39: 1432 | G39: =F39-E39 -> 66 | H39: =F39/E39-1 -> 0.04831625183
B40: Всего | E40: 91947 | F40: 95528 | G40: =F40-E40 -> 3581 | H40: =F40/E40-1 -> 0.03894634953
B44: Изменение количества уникальных клиентов - ретроспективные данные
B48: Количество уникальных клиентов в Системе торгов (ежегодная статистика): | H48: Таблица 1
B49: Группы клиентов | E49: 2008-12-31 | F49: 2009-12-31 | G49: 2010-12-31 | H49: 2011-12-31
B50: Физические лица | E50: 559320 | F50: 671475 | G50: 714295 | H50: 772175
B51: Юридические лица | E51: 14748 | F51: 16364 | G51: 17170 | H51: 16850
B52: Нерезиденты | E52: 3097 | F52: 3851 | G52: 4295 | H52: 5058
B53: Клиенты, передавшие свои средства в ДУ | E53: 4512 | F53: 4717 | G53: 5348 | H53: 5242
B54: Всего | E54: 581677 | F54: 696407 | G54: 741108 | H54: 799325
B82: Количество уникальных клиентов в Системе торгов (за последние 6 месяцев): | H82: Таблица 2
B83: Группы клиентов | C83: 2011-09-30 | D83: 2011-10-31 | E83: 2011-11-30 | F83: 2011-12-31 | G83: 2012-01-30 | H83: =EDATE(E11,1) -> 2012-02-29
B84: Физические лица | C84: 756182 | D84: 767680 | E84: 774773 | F84: 772175 | G84: 779514 | H84: 782553
B85: Юридические лица | C85: 16858 | D85: 17003 | E85: 17114 | F85: 16850 | G85: 17011 | H85: 17054
B86: Нерезиденты | C86: 2939 | D86: 2972 | E86: 3002 | F86: 5058 | G86: 5180 | H86: 5224
B87: Клиенты, передавшие свои средства в ДУ | C87: 5301 | D87: 5439 | E87: 5463 | F87: 5242 | G87: 5257 | H87: 5274
B88: Всего | C88: 783477 | D88: 795338 | E88: 802636 | F88: 799325 | G88: 806962 | H88: 810105
B124: Дополнительные показатели за | C124: 2012-02-29
H127: Таблица 1
B128: Участники торгов | G128: Абсолютные показатели
B129: Количество Участников торгов, имеющих зарегистрированных клиентов | G129: 737
B130: Количество Участников торгов, имеющих уникальных клиентов | G130: 737
B131: Количество Участников торгов, имеющих активных клиентов | G131: 475
B135: Списки ведущих операторов фондового рынка - клиенты Участников торгов за | F135: 2012-02-29
B138: Ведущие операторы рынка – число зарегистрированных клиентов | H138: Таблица 1
B139: Наименование Участника торгов | G139: Количество клиентов
B140: Сбербанк России ОАО | G140: 190 194
B141: ВТБ 24 (ЗАО) | G141: 172 271
B142: ЗАО "ФИНАМ" | G142: 110 214
B143: ООО "Компания БКС" | G143: 95 974
B144: ОАО "АЛЬФА-БАНК" | G144: 56 727
B145: ООО "АТОН" | G145: 40 463
B146: ФК "ОТКРЫТИЕ" | G146: 27 146
B147: ГК "АЛОР" | G147: 19 187
B148: ООО "Инвестиционная палата" | G148: 18 833
B149: КИТ Финанс (ООО) | G149: 18 671
B152: Ведущие операторы рынка – число активных клиентов | H152: Таблица 2
B153: Наименование Участника торгов | G153: Количество клиентов
B154: ЗАО "ФИНАМ" | G154: 17 816
B155: ООО "Компания БКС" | G155: 15 105
B156: Сбербанк России ОАО | G156: 14 358
B157: ВТБ 24 (ЗАО) | G157: 9 127
B158: ОАО "АЛЬФА-БАНК" | G158: 6 081
B159: ООО "АТОН" | G159: 5 984
B160: ФК "ОТКРЫТИЕ" | G160: 3 706
B161: КИТ Финанс (ООО) | G161: 2 541
B162: ГК "АЛОР" | G162: 2 331
B163: ООО "НЭТТРЭЙДЕР" | G163: 1 784
B166: Ведущие операторы рынка – объем клиентских операций | H166: Таблица 3
B167: Наименование Участника торгов | G167: Торговый оборот, руб.
B168: ИК ”Ренессанс Капитал” | G168: 984 282 388 114
B169: ЗАО ИК "Тройка Диалог" | G169: 964 785 157 085
B170: ФК "ОТКРЫТИЕ" | G170: 557 640 698 138
B171: ЗАО "ФИНАМ" | G171: 425 669 500 969
B172: ОАО "Промсвязьбанк" | G172: 410 968 308 782
B173: ООО "Компания БКС" | G173: 351 651 019 239
B174: ООО "АТОН" | G174: 350 508 264 201
B175: ГК "АЛОР" | G175: 190 575 903 939
B176: ООО "РОНИН" | G176: 156 194 773 705
B177: ООО "ИК ВЕЛЕС Капитал" | G177: 123 350 813 708

Sheet Март2012
B2: Клиенты Участников торгов Фондовой биржи ММВБ
B3: =EDATE(Февраль2012!B3,1) -> 2012-03-01
B6: Динамика количества клиентов за | C6: =B3 -> 2012-03-01
B10: Количество зарегистрированных клиентов в Системе торгов: | H10: Таблица 1
B11: Группы клиентов | E11: 2012-02-29 | F11: =EDATE(E11,1) -> 2012-03-29 | G11: Изменение (ед.) | H11: Изменение (%)
B12: Физические лица | E12: 968945 | F12: 975514 | G12: =F12-E12 -> 6569 | H12: =F12/E12-1 -> 0.00677953857
B13: Юридические лица | E13: 33334 | F13: 33497 | G13: =F13-E13 -> 163 | H13: =F13/E13-1 -> 0.004889902202
B14: Нерезиденты | E14: 10792 | F14: 10160 | G14: =F14-E14 -> -632 | H14: =F14/E14-1 -> -0.0585618977
B15: Нерезиденты - физические лица | E15: 1890 | F15: 1931 | G15: 41 | H15: 0.02169312169
B16: Нерезиденты - юридические лица | E16: 8902 | F16: 8229 | G16: -673 | H16: -0.07560098854
B17: Клиенты, передавшие свои средства в ДУ | E17: 16802 | F17: 16898 | G17: =F17-E17 -> 96 | H17: =F17/E17-1 -> 0.005713605523
B18: Всего | E18: 1029873 | F18: 1036069 | G18: =F18-E18 -> 6196 | H18: =F18/E18-1 -> 0.006016275793
B21: Количество уникальных клиентов в Системе торгов: | H21: Таблица 2
B22: Группы клиентов | E22: =E11 -> 2012-02-29 | F22: =F11 -> 2012-03-29 | G22: Изменение (ед.) | H22: Изменение (%)
B23: Физические лица | E23: 782553 | F23: 787742 | G23: =F23-E23 -> 5189 | H23: =F23/E23-1 -> 0.006630860785
B24: Юридические лица | E24: 17054 | F24: 17159 | G24: =F24-E24 -> 105 | H24: =F24/E24-1 -> 0.006156913334
B25: Нерезиденты | E25: 5224 | F25: 5311 | G25: =F25-E25 -> 87 | H25: =F25/E25-1 -> 0.01665390505
B26: Нерезиденты - физические лица | E26: 1842 | F26: 1880 | G26: 38 | H26: 0.02062975027
B27: Нерезиденты - юридические лица | E27: 3382 | F27: 3431 | G27: 49 | H27: 0.01448846836
B28: Клиенты, передавшие свои средства в ДУ | E28: 5274 | F28: 5275 | G28: =F28-E28 -> 1 | H28: =F28/E28-1 -> 0.0001896094046
B29: Всего | E29: 810105 | F29: 815487 | G29: =F29-E29 -> 5382 | H29: =F29/E29-1 -> 0.006643583239
B32: Количество активных клиентов в Системе торгов (совершивших в течение месяца хотя бы одну сделку): | H32: Таблица 3
B33: Группы клиентов | E33: =EDATE(C6,-1) -> 2012-02-01 | F33: =EDATE(E33,1) -> 2012-03-01 | G33: Изменение (ед.) | H33: Изменение (%)
B34: Физические лица | E34: 91762 | F34: 92258 | G34: =F34-E34 -> 496 | H34: =F34/E34-1 -> 0.005405287592
B35: Юридические лица | E35: 1629 | F35: 1701 | G35: =F35-E35 -> 72 | H35: =F35/E35-1 -> 0.04419889503
B36: Нерезиденты | E36: 705 | F36: 703 | G36: =F36-E36 -> -2 | H36: =F36/E36-1 -> -0.002836879433
B37: Нерезиденты - физические лица | E37: 213 | F37: 200 | G37: -13 | H37: -0.06103286385
B38: Нерезиденты - юридические лица | E38: 492 | F38: 503 | G38: 11 | H38: 0.02235772358
B39: Клиенты, передавшие свои средства в ДУ | E39: 1432 | F39: 1299 | G39: =F39-E39 -> -133 | H39: =F39/E39-1 -> -0.09287709497
B40: Всего | E40: 95528 | F40: 95961 | G40: =F40-E40 -> 433 | H40: =F40/E40-1 -> 0.004532702454
B44: Изменение количества уникальных клиентов - ретроспективные данные
B48: Количество уникальных клиентов в Системе торгов (ежегодная статистика): | H48: Таблица 1
B49: Группы клиентов | E49: 2008-12-31 | F49: 2009-12-31 | G49: 2010-12-31 | H49: 2011-12-31
B50: Физические лица | E50: 559320 | F50: 671475 | G50: 714295 | H50: 772175
B51: Юридические лица | E51: 14748 | F51: 16364 | G51: 17170 | H51: 16850
B52: Нерезиденты | E52: 3097 | F52: 3851 | G52: 4295 | H52: 5058
B53: Клиенты, передавшие свои средства в ДУ | E53: 4512 | F53: 4717 | G53: 5348 | H53: 5242
B54: Всего | E54: 581677 | F54: 696407 | G54: 741108 | H54: 799325
B82: Количество уникальных клиентов в Системе торгов (за последние 6 месяцев): | H82: Таблица 2
B83: Группы клиентов | C83: 2011-10-31 | D83: 2011-11-30 | E83: 2011-12-31 | F83: =EDATE(G83,-1) -> 2012-01-29 | G83: =EDATE(H83,-1) -> 2012-02-29 | H83: =EDATE(E11,1) -> 2012-03-29
B84: Физические лица | C84: 767680 | D84: 774773 | E84: 772175 | F84: 779514 | G84: 782553 | H84: 787742
B85: Юридические лица | C85: 17003 | D85: 17114 | E85: 16850 | F85: 17011 | G85: 17054 | H85: 17159
B86: Нерезиденты | C86: 2972 | D86: 3002 | E86: 5058 | F86: 5180 | G86: 5224 | H86: 5311
B87: Клиенты, передавшие свои средства в ДУ | C87: 5439 | D87: 5463 | E87: 5242 | F87: 5257 | G87: 5274 | H87: 5275
B88: Всего | C88: 795338 | D88: 802636 | E88: 799325 | F88: 806962 | G88: 810105 | H88: 815487
B124: Дополнительные показатели за | C124: 2012-03-30
H127: Таблица 1
B128: Участники торгов | G128: Абсолютные показатели
B129: Количество Участников торгов, имеющих зарегистрированных клиентов | G129: 729
B130: Количество Участников торгов, имеющих уникальных клиентов | G130: 729
B131: Количество Участников торгов, имеющих активных клиентов | G131: 483
B135: Списки ведущих операторов фондового рынка - клиенты Участников торгов за | F135: =C6 -> 2012-03-01
B138: Ведущие операторы рынка – число зарегистрированных клиентов | H138: Таблица 1
B139: Наименование Участника торгов | G139: Количество клиентов
B140: Сбербанк России ОАО | G140: 191 042
B141: ВТБ 24 (ЗАО) | G141: 174 343
B142: ЗАО "ФИНАМ" | G142: 111 218
B143: ООО "Компания БКС" | G143: 97 202
B144: ОАО "АЛЬФА-БАНК" | G144: 57 073
B145: ООО "АТОН" | G145: 40 660
B146: ФК "ОТКРЫТИЕ" | G146: 27 848
B147: ГК "АЛОР" | G147: 19 361
B148: ООО "Инвестиционная палата" | G148: 18 973
B149: КИТ Финанс (ООО) | G149: 18 796
B152: Ведущие операторы рынка – число активных клиентов | H152: Таблица 2
B153: Наименование Участника торгов | G153: Количество клиентов
B154: ЗАО "ФИНАМ" | G154: 17 856
B155: ООО "Компания БКС" | G155: 15 111
B156: Сбербанк России ОАО | G156: 14 648
B157: ВТБ 24 (ЗАО) | G157: 9 154
B158: ОАО "АЛЬФА-БАНК" | G158: 6 073
B159: ООО "АТОН" | G159: 6 015
B160: ФК "ОТКРЫТИЕ" | G160: 3 780
B161: ГК "АЛОР" | G161: 2 318
B162: КИТ Финанс (ООО) | G162: 2 303
B163: ООО "НЭТТРЭЙДЕР" | G163: 1 768
B166: Ведущие операторы рынка – объем клиентских операций | H166: Таблица 3
B167: Наименование Участника торгов | G167: Торговый оборот, руб.
B168: ЗАО ИК "Тройка Диалог" | G168: 1 395 244 960 880
B169: ИК ”Ренессанс Капитал” | G169: 1 222 487 014 543
B170: ФК "ОТКРЫТИЕ" | G170: 736 013 029 451
B171: ЗАО "ФИНАМ" | G171: 448 011 670 647
B172: ОАО "Промсвязьбанк" | G172: 416 789 824 943
B173: ООО "Компания БКС" | G173: 398 500 648 181
B174: ООО "АТОН" | G174: 338 489 070 338
B175: ООО "РОНИН" | G175: 264 836 319 829
B176: ГК "АЛОР" | G176: 240 415 756 367
B177: ООО "ИК ВЕЛЕС Капитал" | G177: 174 559 800 062

Sheet Апрель2012
B2: Клиенты Участников торгов Фондовой биржи ММВБ
B3: =EDATE(Март2012!B3,1) -> 2012-04-01
B6: Динамика количества клиентов за | C6: =B3 -> 2012-04-01
B10: Количество зарегистрированных клиентов в Системе торгов: | H10: Таблица 1
B11: Группы клиентов | E11: 2012-03-30 | F11: =EDATE(E11,1) -> 2012-04-30 | G11: Изменение (ед.) | H11: Изменение (%)
B12: Физические лица | E12: 975514 | F12: 984256 | G12: =F12-E12 -> 8742 | H12: =F12/E12-1 -> 0.008961429564
B13: Юридические лица | E13: 33497 | F13: 33718 | G13: =F13-E13 -> 221 | H13: =F13/E13-1 -> 0.006597605756
B14: Нерезиденты | E14: 10160 | F14: 11077 | G14: =F14-E14 -> 917 | H14: =F14/E14-1 -> 0.09025590551
B15: Нерезиденты - физические лица | E15: 1931 | F15: 1957 | G15: 26 | H15: 0.01346452615
B16: Нерезиденты - юридические лица | E16: 8229 | F16: 9120 | G16: 891 | H16: 0.1082756106
B17: Клиенты, передавшие свои средства в ДУ | E17: 16898 | F17: 17015 | G17: =F17-E17 -> 117 | H17: =F17/E17-1 -> 0.006923896319
B18: Всего | E18: 1036069 | F18: 1046066 | G18: =F18-E18 -> 9997 | H18: =F18/E18-1 -> 0.009648971256
B21: Количество уникальных клиентов в Системе торгов: | H21: Таблица 2
B22: Группы клиентов | E22: =E11 -> 2012-03-30 | F22: =F11 -> 2012-04-30 | G22: Изменение (ед.) | H22: Изменение (%)
B23: Физические лица | E23: 787742 | F23: 794030 | G23: =F23-E23 -> 6288 | H23: =F23/E23-1 -> 0.007982308929
B24: Юридические лица | E24: 17159 | F24: 17296 | G24: =F24-E24 -> 137 | H24: =F24/E24-1 -> 0.00798414826
B25: Нерезиденты | E25: 5311 | F25: 5373 | G25: =F25-E25 -> 62 | H25: =F25/E25-1 -> 0.01167388439
B26: Нерезиденты - физические лица | E26: 1880 | F26: 1901 | G26: 21 | H26: 0.01117021277
B27: Нерезиденты - юридические лица | E27: 3431 | F27: 3472 | G27: 41 | H27: 0.01194986884
B28: Клиенты, передавшие свои средства в ДУ | E28: 5275 | F28: 5284 | G28: =F28-E28 -> 9 | H28: =F28/E28-1 -> 0.001706161137
B29: Всего | E29: 815487 | F29: 821983 | G29: =F29-E29 -> 6496 | H29: =F29/E29-1 -> 0.00796579222
B32: Количество активных клиентов в Системе торгов (совершивших в течение месяца хотя бы одну сделку): | H32: Таблица 3
B33: Группы клиентов | E33: =EDATE(C6,-1) -> 2012-03-01 | F33: =EDATE(E33,1) -> 2012-04-01 | G33: Изменение (ед.) | H33: Изменение (%)
B34: Физические лица | E34: 92258 | F34: 79474 | G34: =F34-E34 -> -12784 | H34: =F34/E34-1 -> -0.1385679291
B35: Юридические лица | E35: 1701 | F35: 1594 | G35: =F35-E35 -> -107 | H35: =F35/E35-1 -> -0.06290417402
B36: Нерезиденты | E36: 703 | F36: 668 | G36: =F36-E36 -> -35 | H36: =F36/E36-1 -> -0.04978662873
B37: Нерезиденты - физические лица | E37: 200 | F37: 187 | G37: -13 | H37: -0.065
B38: Нерезиденты - юридические лица | E38: 503 | F38: 481 | G38: -22 | H38: -0.04373757455
B39: Клиенты, передавшие свои средства в ДУ | E39: 1299 | F39: 1434 | G39: =F39-E39 -> 135 | H39: =F39/E39-1 -> 0.103926097
B40: Всего | E40: 95961 | F40: 83170 | G40: =F40-E40 -> -12791 | H40: =F40/E40-1 -> -0.1332937339
B44: Изменение количества уникальных клиентов - ретроспективные данные
B48: Количество уникальных клиентов в Системе торгов (ежегодная статистика): | H48: Таблица 1
B49: Группы клиентов | E49: 2008-12-31 | F49: 2009-12-31 | G49: 2010-12-31 | H49: 2011-12-31
B50: Физические лица | E50: 559320 | F50: 671475 | G50: 714295 | H50: 772175
B51: Юридические лица | E51: 14748 | F51: 16364 | G51: 17170 | H51: 16850
B52: Нерезиденты | E52: 3097 | F52: 3851 | G52: 4295 | H52: 5058
B53: Клиенты, передавшие свои средства в ДУ | E53: 4512 | F53: 4717 | G53: 5348 | H53: 5242
B54: Всего | E54: 581677 | F54: 696407 | G54: 741108 | H54: 799325
B82: Количество уникальных клиентов в Системе торгов (за последние 6 месяцев): | H82: Таблица 2
B83: Группы клиентов | C83: 2011-11-30 | D83: 2011-12-31 | E83: =EDATE(F83,-1) -> 2012-01-29 | F83: =EDATE(G83,-1) -> 2012-02-29 | G83: =EDATE(H83,-1) -> 2012-03-30 | H83: =EDATE(E11,1) -> 2012-04-30
B84: Физические лица | C84: 774773 | D84: 772175 | E84: 779514 | F84: 782553 | G84: 787742 | H84: 794030
B85: Юридические лица | C85: 17114 | D85: 16850 | E85: 17011 | F85: 17054 | G85: 17159 | H85: 17296
B86: Нерезиденты | C86: 3002 | D86: 5058 | E86: 5180 | F86: 5224 | G86: 5311 | H86: 5373
B87: Клиенты, передавшие свои средства в ДУ | C87: 5463 | D87: 5242 | E87: 5257 | F87: 5274 | G87: 5275 | H87: 5284
B88: Всего | C88: 802636 | D88: 799325 | E88: 806962 | F88: 810105 | G88: 815487 | H88: 821983
B124: Дополнительные показатели за | C124: 2012-04-30
H127: Таблица 1
B128: Участники торгов | G128: Абсолютные показатели
B129: Количество Участников торгов, имеющих зарегистрированных клиентов | G129: 715
B130: Количество Участников торгов, имеющих уникальных клиентов | G130: 715
B131: Количество Участников торгов, имеющих активных клиентов | G131: 481
B135: Списки ведущих операторов фондового рынка - клиенты Участников торгов за | F135: =C6 -> 2012-04-01
B138: Ведущие операторы рынка – число зарегистрированных клиентов | H138: Таблица 1
B139: Наименование Участника торгов | G139: Количество клиентов
B140: ОАО "Сбербанк России" | G140: 191 698
B141: ВТБ 24 (ЗАО) | G141: 175 683
B142: ЗАО "ФИНАМ" | G142: 112 265
B143: ООО "Компания БКС" | G143: 98 125
B144: ОАО "АЛЬФА-БАНК" | G144: 57 388
B145: ООО "АТОН" | G145: 40 845
B146: ФК "ОТКРЫТИЕ" | G146: 30 166
B147: ГК "АЛОР" | G147: 19 526
B148: ООО "Инвестиционная палата" | G148: 19 082
B149: КИТ Финанс (ООО) | G149: 18 921
B152: Ведущие операторы рынка – число активных клиентов | H152: Таблица 2
B153: Наименование Участника торгов | G153: Количество клиентов
B154: ЗАО "ФИНАМ" | G154: 16 205
B155: ООО "Компания БКС" | G155: 13 054
B156: ОАО "Сбербанк России" | G156: 11 016
B157: ВТБ 24 (ЗАО) | G157: 8 977
B158: ОАО "АЛЬФА-БАНК" | G158: 5 270
B159: ООО "АТОН" | G159: 5 074
B160: ФК "ОТКРЫТИЕ" | G160: 3 317
B161: ГК "АЛОР" | G161: 2 143
B162: КИТ Финанс (ООО) | G162: 1 986
B163: ООО "НЭТТРЭЙДЕР" | G163: 1 483
B166: Ведущие операторы рынка – объем клиентских операций | H166: Таблица 3
B167: Наименование Участника торгов | G167: Торговый оборот, руб.
B168: ИК «Ренессанс Капитал» | G168: 1 406 679 135 171
B169: ЗАО ИК «Тройка Диалог» | G169: 1 354 151 517 529
B170: ФК «ОТКРЫТИЕ» | G170: 679 349 896 251
B171: ЗАО «ФИНАМ» | G171: 432 915 429 077
B172: ОАО «Промсвязьбанк» | G172: 423 603 755 576
B173: ООО «Компания БКС» | G173: 423 520 627 369
B174: ООО «АТОН» | G174: 372 126 076 328
B175: ООО «РОНИН» | G175: 252 638 270 865
B176: ГК «АЛОР» | G176: 252 008 886 261
B177: ООО «ИК ВЕЛЕС Капитал» | G177: 150 071 751 990

Sheet Май2012
B2: Клиенты Участников торгов Фондовой биржи ММВБ
B3: =EDATE(Апрель2012!B3,1) -> 2012-05-01
B6: Динамика количества клиентов за | C6: =B3 -> 2012-05-01
B10: Количество зарегистрированных клиентов в Системе торгов: | H10: Таблица 1
B11: Группы клиентов | E11: 2012-04-30 | F11: =EDATE(E11,1) -> 2012-05-30 | G11: Изменение (ед.) | H11: Изменение (%)
B12: Физические лица | E12: 984256 | F12: 990493 | G12: =F12-E12 -> 6237 | H12: =F12/E12-1 -> 0.006336766045
B13: Юридические лица | E13: 33718 | F13: 33553 | G13: =F13-E13 -> -165 | H13: =F13/E13-1 -> -0.004893528679
B14: Нерезиденты | E14: 11077 | F14: 11238 | G14: =F14-E14 -> 161 | H14: =F14/E14-1 -> 0.01453462129
B15: Нерезиденты - физические лица | E15: 1957 | F15: 1985 | G15: 28 | H15: 0.01430761369
B16: Нерезиденты - юридические лица | E16: 9120 | F16: 9253 | G16: 133 | H16: 0.01458333333
B17: Клиенты, передавшие свои средства в ДУ | E17: 17015 | F17: 17103 | G17: =F17-E17 -> 88 | H17: =F17/E17-1 -> 0.005171907141
B18: Всего | E18: 1046066 | F18: 1052387 | G18: =F18-E18 -> 6321 | H18: =F18/E18-1 -> 0.006042639757
B21: Количество уникальных клиентов в Системе торгов: | H21: Таблица 2
B22: Группы клиентов | E22: =E11 -> 2012-04-30 | F22: =F11 -> 2012-05-30 | G22: Изменение (ед.) | H22: Изменение (%)
B23: Физические лица | E23: 794030 | F23: 799942 | G23: =F23-E23 -> 5912 | H23: =F23/E23-1 -> 0.00744556251
B24: Юридические лица | E24: 17296 | F24: 17333 | G24: =F24-E24 -> 37 | H24: =F24/E24-1 -> 0.002139222942
B25: Нерезиденты | E25: 5373 | F25: 5430 | G25: =F25-E25 -> 57 | H25: =F25/E25-1 -> 0.01060859855
B26: Нерезиденты - физические лица | E26: 1901 | F26: 1924 | G26: 23 | H26: 0.01209889532
B27: Нерезиденты - юридические лица | E27: 3472 | F27: 3506 | G27: 34 | H27: 0.009792626728
B28: Клиенты, передавшие свои средства в ДУ | E28: 5284 | F28: 5299 | G28: =F28-E28 -> 15 | H28: =F28/E28-1 -> 0.002838758516
B29: Всего | E29: 821983 | F29: 828004 | G29: =F29-E29 -> 6021 | H29: =F29/E29-1 -> 0.007324969008
B32: Количество активных клиентов в Системе торгов (совершивших в течение месяца хотя бы одну сделку): | H32: Таблица 3
B33: Группы клиентов | E33: =EDATE(C6,-1) -> 2012-04-01 | F33: =EDATE(E33,1) -> 2012-05-01 | G33: Изменение (ед.) | H33: Изменение (%)
B34: Физические лица | E34: 79474 | F34: 81725 | G34: =F34-E34 -> 2251 | H34: =F34/E34-1 -> 0.02832372851
B35: Юридические лица | E35: 1594 | F35: 1514 | G35: =F35-E35 -> -80 | H35: =F35/E35-1 -> -0.05018820577
B36: Нерезиденты | E36: 668 | F36: 677 | G36: =F36-E36 -> 9 | H36: =F36/E36-1 -> 0.01347305389
B37: Нерезиденты - физические лица | E37: 187 | F37: 191 | G37: 4 | H37: 0.02139037433
B38: Нерезиденты - юридические лица | E38: 481 | F38: 486 | G38: 5 | H38: 0.0103950104
B39: Клиенты, передавшие свои средства в ДУ | E39: 1434 | F39: 1323 | G39: =F39-E39 -> -111 | H39: =F39/E39-1 -> -0.07740585774
B40: Всего | E40: 83170 | F40: 85239 | G40: =F40-E40 -> 2069 | H40: =F40/E40-1 -> 0.02487675845
B44: Изменение количества уникальных клиентов - ретроспективные данные
B48: Количество уникальных клиентов в Системе торгов (ежегодная статистика): | H48: Таблица 1
B49: Группы клиентов | E49: 2008-12-31 | F49: 2009-12-31 | G49: 2010-12-31 | H49: 2011-12-31
B50: Физические лица | E50: 559320 | F50: 671475 | G50: 714295 | H50: 772175
B51: Юридические лица | E51: 14748 | F51: 16364 | G51: 17170 | H51: 16850
B52: Нерезиденты | E52: 3097 | F52: 3851 | G52: 4295 | H52: 5058
B53: Клиенты, передавшие свои средства в ДУ | E53: 4512 | F53: 4717 | G53: 5348 | H53: 5242
B54: Всего | E54: 581677 | F54: 696407 | G54: 741108 | H54: 799325
B82: Количество уникальных клиентов в Системе торгов (за последние 6 месяцев): | H82: Таблица 2
B83: Группы клиентов | C83: 2011-12-31 | D83: =EDATE(E83,-1) -> 2012-01-29 | E83: =EDATE(F83,-1) -> 2012-02-29 | F83: =EDATE(G83,-1) -> 2012-03-30 | G83: =EDATE(H83,-1) -> 2012-04-30 | H83: =EDATE(E11,1) -> 2012-05-30
B84: Физические лица | C84: 772175 | D84: 779514 | E84: 782553 | F84: 787742 | G84: 794030 | H84: 799942
B85: Юридические лица | C85: 16850 | D85: 17011 | E85: 17054 | F85: 17159 | G85: 17296 | H85: 17333
B86: Нерезиденты | C86: 5058 | D86: 5180 | E86: 5224 | F86: 5311 | G86: 5373 | H86: 5430
B87: Клиенты, передавшие свои средства в ДУ | C87: 5242 | D87: 5257 | E87: 5274 | F87: 5275 | G87: 5284 | H87: 5299
B88: Всего | C88: 799325 | D88: 806962 | E88: 810105 | F88: 815487 | G88: 821983 | H88: 828004
B124: Дополнительные показатели за | C124: 2012-05-31
H127: Таблица 1
B128: Участники торгов | G128: Абсолютные показатели
B129: Количество Участников торгов, имеющих зарегистрированных клиентов | G129: 717
B130: Количество Участников торгов, имеющих уникальных клиентов | G130: 717
B131: Количество Участников торгов, имеющих активных клиентов | G131: 482
B135: Списки ведущих операторов фондового рынка - клиенты Участников торгов за | F135: =C6 -> 2012-05-01
B138: Ведущие операторы рынка – число зарегистрированных клиентов | H138: Таблица 1
B139: Наименование Участника торгов | G139: Количество клиентов
B140: ОАО «Сбербанк России» | G140: 192 125
B141: ВТБ 24 (ЗАО) | G141: 176 904
B142: ЗАО «ФИНАМ» | G142: 113 178
B143: ООО «Компания БКС» | G143: 99 003
B144: ОАО «АЛЬФА-БАНК» | G144: 57 714
B145: ООО «АТОН» | G145: 41 054
B146: ФК «ОТКРЫТИЕ» | G146: 30 610
B147: ГК «АЛОР» | G147: 19 679
B148: ООО «Инвестиционная палата» | G148: 19 172
B149: КИТ Финанс (ООО) | G149: 19 041
B152: Ведущие операторы рынка – число активных клиентов | H152: Таблица 2
B153: Наименование Участника торгов | G153: Количество клиентов
B154: ЗАО «ФИНАМ» | G154: 16 541
B155: ООО «Компания БКС» | G155: 13 549
B156: ОАО «Сбербанк России» | G156: 11 062
B157: ВТБ 24 (ЗАО) | G157: 8 820
B158: ОАО «АЛЬФА-БАНК» | G158: 5 811
B159: ООО «АТОН» | G159: 5 144
B160: ФК «ОТКРЫТИЕ» | G160: 3 438
B161: ГК «АЛОР» | G161: 2 118
B162: КИТ Финанс (ООО) | G162: 2 104
B163: ООО «НЭТТРЭЙДЕР» | G163: 1 605
B166: Ведущие операторы рынка – объем клиентских операций | H166: Таблица 3
B167: Наименование Участника торгов | G167: Торговый оборот, руб.
B168: ЗАО ИК «Тройка Диалог» | G168: 1 435 377 701 203
B169: ИК «Ренессанс Капитал» | G169: 1 236 629 685 186
B170: ФК «ОТКРЫТИЕ» | G170: 654 794 563 808
B171: ЗАО «ФИНАМ» | G171: 433 318 945 623
B172: ОАО «Промсвязьбанк» | G172: 431 898 066 594
B173: ООО «Компания БКС» | G173: 398 918 753 522
B174: ООО «АТОН» | G174: 307 451 120 686
B175: ООО «РОНИН» | G175: 274 010 040 657
B176: ГК «АЛОР» | G176: 252 776 446 110
B177: ООО «ИК ВЕЛЕС Капитал» | G177: 112 786 315 946

Sheet Июнь2012
B2: Клиенты Участников торгов Фондовой биржи ММВБ
B3: =EDATE(Май2012!B3,1) -> 2012-06-01
B6: Динамика количества клиентов за | C6: =B3 -> 2012-06-01
B10: Количество зарегистрированных клиентов в Системе торгов: | H10: Таблица 1
B11: Группы клиентов | E11: 2012-05-31 | F11: =EDATE(E11,1) -> 2012-06-30 | G11: Изменение (ед.) | H11: Изменение (%)
B12: Физические лица | E12: 990493 | F12: 984272 | G12: =F12-E12 -> -6221 | H12: =F12/E12-1 -> -0.006280710717
B13: Юридические лица | E13: 33553 | F13: 33950 | G13: =F13-E13 -> 397 | H13: =F13/E13-1 -> 0.01183202694
B14: Нерезиденты | E14: 11238 | F14: 11264 | G14: =F14-E14 -> 26 | H14: =F14/E14-1 -> 0.002313578929
B15: Нерезиденты - физические лица | E15: 1985 | F15: 1994 | G15: 9 | H15: 0.004534005038
B16: Нерезиденты - юридические лица | E16: 9253 | F16: 9270 | G16: 17 | H16: 0.001837241976
B17: Клиенты, передавшие свои средства в ДУ | E17: 17103 | F17: 17094 | G17: =F17-E17 -> -9 | H17: =F17/E17-1 -> -0.0005262234696
B18: Всего | E18: 1052387 | F18: 1046580 | G18: =F18-E18 -> -5807 | H18: =F18/E18-1 -> -0.005517932092
B21: Количество уникальных клиентов в Системе торгов: | H21: Таблица 2
B22: Группы клиентов | E22: =E11 -> 2012-05-31 | F22: =F11 -> 2012-06-30 | G22: Изменение (ед.) | H22: Изменение (%)
B23: Физические лица | E23: 799942 | F23: 794477 | G23: =F23-E23 -> -5465 | H23: =F23/E23-1 -> -0.006831745302
B24: Юридические лица | E24: 17333 | F24: 17454 | G24: =F24-E24 -> 121 | H24: =F24/E24-1 -> 0.006980903479
B25: Нерезиденты | E25: 5430 | F25: 5452 | G25: =F25-E25 -> 22 | H25: =F25/E25-1 -> 0.004051565378
B26: Нерезиденты - физические лица | E26: 1924 | F26: 1937 | G26: 13 | H26: 0.006756756757
B27: Нерезиденты - юридические лица | E27: 3506 | F27: 3515 | G27: 9 | H27: 0.002567027952
B28: Клиенты, передавшие свои средства в ДУ | E28: 5299 | F28: 5267 | G28: =F28-E28 -> -32 | H28: =F28/E28-1 -> -0.006038875259
B29: Всего | E29: 828004 | F29: 822650 | G29: =F29-E29 -> -5354 | H29: =F29/E29-1 -> -0.006466152337
B32: Количество активных клиентов в Системе торгов (совершивших в течение месяца хотя бы одну сделку): | H32: Таблица 3
B33: Группы клиентов | E33: =EDATE(C6,-1) -> 2012-05-01 | F33: =EDATE(E33,1) -> 2012-06-01 | G33: Изменение (ед.) | H33: Изменение (%)
B34: Физические лица | E34: 81725 | F34: 68858 | G34: =F34-E34 -> -12867 | H34: =F34/E34-1 -> -0.157442643
B35: Юридические лица | E35: 1514 | F35: 1507 | G35: =F35-E35 -> -7 | H35: =F35/E35-1 -> -0.004623513871
B36: Нерезиденты | E36: 677 | F36: 610 | G36: =F36-E36 -> -67 | H36: =F36/E36-1 -> -0.09896602659
B37: Нерезиденты - физические лица | E37: 191 | F37: 149 | G37: -42 | H37: -0.219895288
B38: Нерезиденты - юридические лица | E38: 486 | F38: 461 | G38: -25 | H38: -0.05144032922
B39: Клиенты, передавшие свои средства в ДУ | E39: 1323 | F39: 1210 | G39: =F39-E39 -> -113 | H39: =F39/E39-1 -> -0.08541194255
B40: Всего | E40: 85239 | F40: 72185 | G40: =F40-E40 -> -13054 | H40: =F40/E40-1 -> -0.1531458605
B44: Изменение количества уникальных клиентов - ретроспективные данные
B48: Количество уникальных клиентов в Системе торгов (ежегодная статистика): | H48: Таблица 1
B49: Группы клиентов | E49: 2008-12-31 | F49: 2009-12-31 | G49: 2010-12-31 | H49: 2011-12-31
B50: Физические лица | E50: 559320 | F50: 671475 | G50: 714295 | H50: 772175
B51: Юридические лица | E51: 14748 | F51: 16364 | G51: 17170 | H51: 16850
B52: Нерезиденты | E52: 3097 | F52: 3851 | G52: 4295 | H52: 5058
B53: Клиенты, передавшие свои средства в ДУ | E53: 4512 | F53: 4717 | G53: 5348 | H53: 5242
B54: Всего | E54: 581677 | F54: 696407 | G54: 741108 | H54: 799325
B82: Количество уникальных клиентов в Системе торгов (за последние 6 месяцев): | H82: Таблица 2
B83: Группы клиентов | C83: =EDATE(D83,-1) -> 2012-01-29 | D83: =EDATE(E83,-1) -> 2012-02-29 | E83: =EDATE(F83,-1) -> 2012-03-30 | F83: =EDATE(G83,-1) -> 2012-04-30 | G83: =EDATE(H83,-1) -> 2012-05-30 | H83: =EDATE(E11,1) -> 2012-06-30
B84: Физические лица | C84: 779514 | D84: 782553 | E84: 787742 | F84: 794030 | G84: 799942 | H84: 794477
B85: Юридические лица | C85: 17011 | D85: 17054 | E85: 17159 | F85: 17296 | G85: 17333 | H85: 17454
B86: Нерезиденты | C86: 5180 | D86: 5224 | E86: 5311 | F86: 5373 | G86: 5430 | H86: 5452
B87: Клиенты, передавшие свои средства в ДУ | C87: 5257 | D87: 5274 | E87: 5275 | F87: 5284 | G87: 5299 | H87: 5267
B88: Всего | C88: 806962 | D88: 810105 | E88: 815487 | F88: 821983 | G88: 828004 | H88: 822650
B124: Дополнительные показатели за | C124: 2012-06-29
H127: Таблица 1
B128: Участники торгов | G128: Абсолютные показатели
B129: Количество Участников торгов, имеющих зарегистрированных клиентов | G129: 718
B130: Количество Участников торгов, имеющих уникальных клиентов | G130: 718
B131: Количество Участников торгов, имеющих активных клиентов | G131: 473
B135: Списки ведущих операторов фондового рынка - клиенты Участников торгов за | F135: =C6 -> 2012-06-01
B138: Ведущие операторы рынка – число зарегистрированных клиентов | H138: Таблица 1
B139: Наименование Участника торгов | G139: Количество клиентов
B140: ОАО «Сбербанк России» | G140: 189 597
B141: ВТБ 24 (ЗАО) | G141: 178 401
B142: ЗАО «ФИНАМ» | G142: 113 931
B143: ООО «Компания БКС» | G143: 100 002
B144: ОАО «АЛЬФА-БАНК» | G144: 57 983
B145: ООО «АТОН» | G145: 41 238
B146: ФК «ОТКРЫТИЕ» | G146: 31 094
B147: ГК «АЛОР» | G147: 19 829
B148: КИТ Финанс (ООО) | G148: 19 145
B149: ООО «Инвестиционная палата» | G149: 19 064
B152: Ведущие операторы рынка – число активных клиентов | H152: Таблица 2
B153: Наименование Участника торгов | G153: Количество клиентов
B154: ЗАО «ФИНАМ» | G154: 13 348
B155: ООО «Компания БКС» | G155: 11 269
B156: ОАО «Сбербанк России» | G156: 10 563
B157: ВТБ 24 (ЗАО) | G157: 7 082
B158: ОАО «АЛЬФА-БАНК» | G158: 4 782
B159: ООО «АТОН» | G159: 4 170
B160: ФК «ОТКРЫТИЕ» | G160: 2 987
B161: ГК «АЛОР» | G161: 1 834
B162: КИТ Финанс (ООО) | G162: 1 772
B163: ООО «НЭТТРЭЙДЕР» | G163: 1 491
B166: Ведущие операторы рынка – объем клиентских операций | H166: Таблица 3
B167: Наименование Участника торгов | G167: Торговый оборот, руб.
B168: ЗАО ИК «Тройка Диалог» | G168: 1 384 187 398 967
B169: ИК «Ренессанс Капитал» | G169: 843 664 312 780
B170: ФК «ОТКРЫТИЕ» | G170: 588 879 922 329
B171: ОАО «Промсвязьбанк» | G171: 388 049 385 204
B172: ЗАО «ФИНАМ» | G172: 351 725 731 927
B173: ООО «Компания БКС» | G173: 346 457 027 989
B174: ООО «РОНИН» | G174: 231 225 176 665
B175: ООО «АТОН» | G175: 207 906 026 988
B176: ГК «АЛОР» | G176: 161 795 194 475
B177: ОАО «УБРиР» | G177: 115 006 030 592

Sheet Июль2012
B2: Клиенты Участников торгов Фондовой биржи ММВБ
B3: =EDATE(Июнь2012!B3,1) -> 2012-07-01
B6: Динамика количества клиентов за | C6: =B3 -> 2012-07-01
B10: Количество зарегистрированных клиентов в Системе торгов: | H10: Таблица 1
B11: Группы клиентов | E11: 2012-06-01 | F11: 2012-07-01 | G11: Изменение (ед.) | H11: Изменение (%)
B12: Физические лица | E12: 984272 | F12: 991720 | G12: =F12-E12 -> 7448 | H12: =F12/E12-1 -> 0.007567013996
B13: Юридические лица | E13: 33950 | F13: 34191 | G13: =F13-E13 -> 241 | H13: =F13/E13-1 -> 0.007098674521
B14: Нерезиденты | E14: 11264 | F14: 11413 | G14: =F14-E14 -> 149 | H14: =F14/E14-1 -> 0.01322798295
B15: Нерезиденты - физические лица | E15: 1994 | F15: 2020 | G15: 26 | H15: 0.01303911735
B16: Нерезиденты - юридические лица | E16: 9270 | F16: 9393 | G16: 123 | H16: 0.01326860841
B17: Клиенты, передавшие свои средства в ДУ | E17: 17094 | F17: 17113 | G17: =F17-E17 -> 19 | H17: =F17/E17-1 -> 0.001111501112
B18: Всего | E18: 1046580 | F18: 1054437 | G18: =F18-E18 -> 7857 | H18: =F18/E18-1 -> 0.007507309522
B21: Количество уникальных клиентов в Системе торгов: | H21: Таблица 2
B22: Группы клиентов | E22: 2012-06-01 | F22: 2012-07-01 | G22: Изменение (ед.) | H22: Изменение (%)
B23: Физические лица | E23: 794477 | F23: 799804 | G23: =F23-E23 -> 5327 | H23: =F23/E23-1 -> 0.006705039919
B24: Юридические лица | E24: 17454 | F24: 17565 | G24: =F24-E24 -> 111 | H24: =F24/E24-1 -> 0.006359573737
B25: Нерезиденты | E25: 5452 | F25: 5540 | G25: =F25-E25 -> 88 | H25: =F25/E25-1 -> 0.01614086574
B26: Нерезиденты - физические лица | E26: 1937 | F26: 1953 | G26: 16 | H26: 0.00826019618
B27: Нерезиденты - юридические лица | E27: 3515 | F27: 3587 | G27: 72 | H27: 0.02048364154
B28: Клиенты, передавшие свои средства в ДУ | E28: 5267 | F28: 5245 | G28: =F28-E28 -> -22 | H28: =F28/E28-1 -> -0.004176950826
B29: Всего | E29: 822650 | F29: 828154 | G29: =F29-E29 -> 5504 | H29: =F29/E29-1 -> 0.006690573148
B32: Количество активных клиентов в Системе торгов (совершивших в течение месяца хотя бы одну сделку): | H32: Таблица 3
B33: Группы клиентов | E33: =EDATE(C6,-1) -> 2012-06-01 | F33: =EDATE(E33,1) -> 2012-07-01 | G33: Изменение (ед.) | H33: Изменение (%)
B34: Физические лица | E34: 68858 | F34: 70205 | G34: 1347 | H34: 0.0196
B35: Юридические лица | E35: 1507 | F35: 1506 | G35: -1 | H35: -0.0007
B36: Нерезиденты | E36: 610 | F36: 648 | G36: 38 | H36: 0.0623
B37: Нерезиденты - физические лица | E37: 149 | F37: 164 | G37: 15 | H37: 0.1006711409
B38: Нерезиденты - юридические лица | E38: 461 | F38: 484 | G38: 23 | H38: 0.04989154013
B39: Клиенты, передавшие свои средства в ДУ | E39: 1210 | F39: 1246 | G39: 569 | H39: 0.8405
B40: Всего | E40: 72185 | F40: 73605 | G40: 1953 | H40: 0.0273
B44: Изменение количества уникальных клиентов - ретроспективные данные
B48: Количество уникальных клиентов в Системе торгов (ежегодная статистика): | H48: Таблица 1
B49: Группы клиентов | E49: 2008-12-31 | F49: 2009-12-31 | G49: 2010-12-31 | H49: 2011-12-31
B50: Физические лица | E50: 559320 | F50: 671475 | G50: 714295 | H50: 772175
B51: Юридические лица | E51: 14748 | F51: 16364 | G51: 17170 | H51: 16850
B52: Нерезиденты | E52: 3097 | F52: 3851 | G52: 4295 | H52: 5058
B53: Клиенты, передавшие свои средства в ДУ | E53: 4512 | F53: 4717 | G53: 5348 | H53: 5242
B54: Всего | E54: 581677 | F54: 696407 | G54: 741108 | H54: 799325
B82: Количество уникальных клиентов в Системе торгов (за последние 6 месяцев): | H82: Таблица 2
B83: Группы клиентов | C83: 2012-02-29 | D83: 2012-03-31 | E83: 2012-04-30 | F83: 2012-05-31 | G83: 2012-06-30 | H83: 2012-07-31
B84: Физические лица | C84: 782553 | D84: 787742 | E84: 794030 | F84: 799942 | G84: 794477 | H84: 799804
B85: Юридические лица | C85: 17054 | D85: 17159 | E85: 17296 | F85: 17333 | G85: 17454 | H85: 17565
B86: Нерезиденты | C86: 5224 | D86: 5311 | E86: 5373 | F86: 5430 | G86: 5452 | H86: 5540
B87: Клиенты, передавшие свои средства в ДУ | C87: 5274 | D87: 5275 | E87: 5284 | F87: 5299 | G87: 5267 | H87: 5245
B88: Всего | C88: 810105 | D88: 815487 | E88: 821983 | F88: 828004 | G88: 822650 | H88: 828154
B124: Дополнительные показатели за | C124: 2012-07-31
H127: Таблица 1
B128: Участники торгов | G128: Абсолютные показатели
B129: Количество Участников торгов, имеющих зарегистрированных клиентов | G129: 715
B130: Количество Участников торгов, имеющих уникальных клиентов | G130: 715
B131: Количество Участников торгов, имеющих активных клиентов | G131: 470
B135: Списки ведущих операторов фондового рынка - клиенты Участников торгов за | F135: =C6 -> 2012-07-01
B138: Ведущие операторы рынка – число зарегистрированных клиентов | H138: Таблица 1
B139: Наименование Участника торгов | G139: Количество клиентов
B140: ОАО «Сбербанк России» | G140: 186 024
B141: ВТБ 24 (ЗАО) | G141: 179 621
B142: ЗАО «ФИНАМ» | G142: 114 605
B143: ООО «Компания БКС» | G143: 100 781
B144: ОАО «АЛЬФА-БАНК» | G144: 58 232
B145: ООО «АТОН» | G145: 41 387
B146: ФК «ОТКРЫТИЕ» | G146: 31 521
B147: ГК «АЛОР» | G147: 20 126
B148: КИТ Финанс (ООО) | G148: 19 250
B149: ООО «Инвестиционная палата» | G149: 19 110
B152: Ведущие операторы рынка – число активных клиентов | H152: Таблица 2
B153: Наименование Участника торгов | G153: Количество клиентов
B154: ЗАО «ФИНАМ» | G154: 13 644
B155: ООО «Компания БКС» | G155: 11 492
B156: ОАО «Сбербанк России» | G156: 10 421
B157: ВТБ 24 (ЗАО) | G157: 7 266
B158: ОАО «АЛЬФА-БАНК» | G158: 4 713
B159: ООО «АТОН» | G159: 4 373
B160: ФК «ОТКРЫТИЕ» | G160: 3 186
B161: ГК «АЛОР» | G161: 1 795
B162: КИТ Финанс (ООО) | G162: 1 748
B163: ООО «НЭТТРЭЙДЕР» | G163: 1 635
B166: Ведущие операторы рынка – объем клиентских операций | H166: Таблица 3
B167: Наименование Участника торгов | G167: Торговый оборот, руб.
B168: ЗАО ИК «Тройка Диалог» | G168: 1 595 669 002 669
B169: ИК «Ренессанс Капитал» | G169: 974 825 146 672
B170: ФК «ОТКРЫТИЕ» | G170: 529 498 025 474
B171: ОАО «Промсвязьбанк» | G171: 435 469 464 211
B172: ЗАО «ФИНАМ» | G172: 394 958 849 384
B173: ООО «Компания БКС» | G173: 347 243 312 203
B174: ООО «АТОН» | G174: 228 374 868 184
B175: ООО «РОНИН» | G175: 213 707 751 422
B176: ООО «ИК ВЕЛЕС Капитал» | G176: 188 494 846 086
B177: ГК «АЛОР» | G177: 184 048 455 598

Sheet Август2012
B2: Клиенты Участников торгов Фондовой биржи ММВБ
B3: =EDATE(Июль2012!B3,1) -> 2012-08-01
B6: Динамика количества клиентов за | C6: =B3 -> 2012-08-01
B10: Количество зарегистрированных клиентов в Системе торгов: | H10: Таблица 1
B11: Группы клиентов | E11: 2012-07-31 | F11: =EDATE(E11,1) -> 2012-08-31 | G11: Изменение (ед.) | H11: Изменение (%)
B12: Физические лица | E12: 991720 | F12: 981932 | G12: =F12-E12 -> -9788 | H12: =F12/E12-1 -> -0.009869721292
B13: Юридические лица | E13: 34191 | F13: 34151 | G13: =F13-E13 -> -40 | H13: =F13/E13-1 -> -0.001169898511
B14: Нерезиденты | E14: 11413 | F14: 11453 | G14: =F14-E14 -> 40 | H14: =F14/E14-1 -> 0.003504775256
B15: Нерезиденты - физические лица | E15: 2020 | F15: 2056 | G15: 36 | H15: 0.01782178218
B16: Нерезиденты - юридические лица | E16: 9393 | F16: 9397 | G16: 4 | H16: 0.0004258490365
B17: Клиенты, передавшие свои средства в ДУ | E17: 17113 | F17: 16968 | G17: =F17-E17 -> -145 | H17: =F17/E17-1 -> -0.008473090633
B18: Всего | E18: 1054437 | F18: 1044504 | G18: =F18-E18 -> -9933 | H18: =F18/E18-1 -> -0.009420192956
B21: Количество уникальных клиентов в Системе торгов: | H21: Таблица 2
B22: Группы клиентов | E22: =E11 -> 2012-07-31 | F22: =F11 -> 2012-08-31 | G22: Изменение (ед.) | H22: Изменение (%)
B23: Физические лица | E23: 799804 | F23: 791512 | G23: =F23-E23 -> -8292 | H23: =F23/E23-1 -> -0.01036754005
B24: Юридические лица | E24: 17565 | F24: 17475 | G24: =F24-E24 -> -90 | H24: =F24/E24-1 -> -0.00512382579
B25: Нерезиденты | E25: 5540 | F25: 5636 | G25: =F25-E25 -> 96 | H25: =F25/E25-1 -> 0.01732851986
B26: Нерезиденты - физические лица | E26: 1953 | F26: 1984 | G26: 31 | H26: 0.01587301587
B27: Нерезиденты - юридические лица | E27: 3587 | F27: 3652 | G27: 65 | H27: 0.01812099247
B28: Клиенты, передавшие свои средства в ДУ | E28: 5245 | F28: 5250 | G28: =F28-E28 -> 5 | H28: =F28/E28-1 -> 0.0009532888465
B29: Всего | E29: 828154 | F29: 819873 | G29: =F29-E29 -> -8281 | H29: =F29/E29-1 -> -0.009999347947
B32: Количество активных клиентов в Системе торгов (совершивших в течение месяца хотя бы одну сделку): | H32: Таблица 3
B33: Группы клиентов | E33: =EDATE(C6,-1) -> 2012-07-01 | F33: =EDATE(E33,1) -> 2012-08-01 | G33: Изменение (ед.) | H33: Изменение (%)
B34: Физические лица | E34: 70205 | F34: 68776 | G34: =F34-E34 -> -1429 | H34: =F34/E34-1 -> -0.02035467559
B35: Юридические лица | E35: 1506 | F35: 1493 | G35: =F35-E35 -> -13 | H35: =F35/E35-1 -> -0.008632138114
B36: Нерезиденты | E36: 648 | F36: 664 | G36: =F36-E36 -> 16 | H36: =F36/E36-1 -> 0.02469135802
B37: Нерезиденты - физические лица | E37: 164 | F37: 164 | G37: 0 | H37: 0
B38: Нерезиденты - юридические лица | E38: 484 | F38: 500 | G38: 16 | H38: 0.03305785124
B39: Клиенты, передавшие свои средства в ДУ | E39: 1246 | F39: 1013 | G39: =F39-E39 -> -233 | H39: =F39/E39-1 -> -0.1869983949
B40: Всего | E40: 73605 | F40: 71946 | G40: =F40-E40 -> -1659 | H40: =F40/E40-1 -> -0.02253922967
B44: Изменение количества уникальных клиентов - ретроспективные данные
B48: Количество уникальных клиентов в Системе торгов (ежегодная статистика): | H48: Таблица 1
B49: Группы клиентов | E49: 2008-12-31 | F49: 2009-12-31 | G49: 2010-12-31 | H49: 2011-12-31
B50: Физические лица | E50: 559320 | F50: 671475 | G50: 714295 | H50: 772175
B51: Юридические лица | E51: 14748 | F51: 16364 | G51: 17170 | H51: 16850
B52: Нерезиденты | E52: 3097 | F52: 3851 | G52: 4295 | H52: 5058
B53: Клиенты, передавшие свои средства в ДУ | E53: 4512 | F53: 4717 | G53: 5348 | H53: 5242
B54: Всего | E54: 581677 | F54: 696407 | G54: 741108 | H54: 799325
B82: Количество уникальных клиентов в Системе торгов (за последние 6 месяцев): | H82: Таблица 2
B83: Группы клиентов | C83: =EDATE(D83,-1) -> 2012-03-30 | D83: =EDATE(E83,-1) -> 2012-04-30 | E83: =EDATE(F83,-1) -> 2012-05-30 | F83: =EDATE(G83,-1) -> 2012-06-30 | G83: =EDATE(H83,-1) -> 2012-07-31 | H83: =EDATE(E11,1) -> 2012-08-31
B84: Физические лица | C84: 787742 | D84: 794030 | E84: 799942 | F84: 794477 | G84: 799804 | H84: 791512
B85: Юридические лица | C85: 17159 | D85: 17296 | E85: 17333 | F85: 17454 | G85: 17565 | H85: 17475
B86: Нерезиденты | C86: 5311 | D86: 5373 | E86: 5430 | F86: 5452 | G86: 5540 | H86: 5636
B87: Клиенты, передавшие свои средства в ДУ | C87: 5275 | D87: 5284 | E87: 5299 | F87: 5267 | G87: 5245 | H87: 5250
B88: Всего | C88: 815487 | D88: 821983 | E88: 828004 | F88: 822650 | G88: 828154 | H88: 819873
B124: Дополнительные показатели на | C124: 2012-08-31
H127: Таблица 1
B128: Участники торгов | G128: Абсолютные показатели
B129: Количество Участников торгов, имеющих зарегистрированных клиентов | G129: 719
B130: Количество Участников торгов, имеющих уникальных клиентов | G130: 719
B131: Количество Участников торгов, имеющих активных клиентов | G131: 473
B135: Списки ведущих операторов фондового рынка - клиенты Участников торгов за | F135: =C6 -> 2012-08-01
B138: Ведущие операторы рынка – число зарегистрированных клиентов | H138: Таблица 1
B139: Наименование Участника торгов | G139: Количество клиентов
B140: ВТБ 24 (ЗАО) | G140: 181191
B141: ОАО «Сбербанк России» | G141: 167955
B142: ЗАО «ФИНАМ» | G142: 115265
B143: ООО «Компания БКС» | G143: 101622
B144: ОАО «АЛЬФА-БАНК» | G144: 58472
B145: ООО «АТОН» | G145: 41548
B146: ФК «ОТКРЫТИЕ» | G146: 31914
B147: ГК «АЛОР» | G147: 21055
B148: ЗАО ИК «Тройка Диалог» | G148: 19648
B149: КИТ Финанс (ООО) | G149: 19332
B152: Ведущие операторы рынка – число активных клиентов | H152: Таблица 2
B153: Наименование Участника торгов | G153: Количество клиентов
B154: ЗАО «ФИНАМ» | G154: 12762
B155: ООО «Компания БКС» | G155: 11141
B156: ОАО «Сбербанк России» | G156: 10699
B157: ВТБ 24 (ЗАО) | G157: 6957
B158: ОАО «АЛЬФА-БАНК» | G158: 4598
B159: ООО «АТОН» | G159: 4335
B160: ФК «ОТКРЫТИЕ» | G160: 3617
B161: ЗАО ИК «Тройка Диалог» | G161: 1915
B162: ГК «АЛОР» | G162: 1767
B163: КИТ Финанс (ООО) | G163: 1702
B166: Ведущие операторы рынка – объем клиентских операций | H166: Таблица 3
B167: Наименование Участника торгов | G167: Торговый оборот, руб.
B168: ЗАО ИК «Тройка Диалог» | G168: 1186938689884
B169: ИК «Ренессанс Капитал» | G169: 829267209139
B170: ООО «БК РЕГИОН» | G170: 750887308667
B171: ФК «ОТКРЫТИЕ» | G171: 532257685548
B172: ОАО «Промсвязьбанк» | G172: 459042215174
B173: ЗАО «ФИНАМ» | G173: 435342448346
B174: ООО «Компания БКС» | G174: 399401491123
B175: ООО «АТОН» | G175: 253346156537
B176: ООО «РОНИН» | G176: 195386629308
B177: ООО «ИК ВЕЛЕС Капитал» | G177: 192075029077

Sheet Сентябрь2012
B2: Клиенты Участников торгов Фондовой биржи ММВБ
B3: =EDATE(Август2012!B3,1) -> 2012-09-01
B6: Динамика количества клиентов за | C6: =B3 -> 2012-09-01
B10: Количество зарегистрированных клиентов в Системе торгов: | H10: Таблица 1
B11: Группы клиентов | E11: 2012-08-31 | F11: =EDATE(E11,1) -> 2012-09-30 | G11: Изменение (ед.) | H11: Изменение (%)
B12: Физические лица | E12: 981932 | F12: 988316 | G12: =F12-E12 -> 6384 | H12: =F12/E12-1 -> 0.006501468533
B13: Юридические лица | E13: 34151 | F13: 34300 | G13: =F13-E13 -> 149 | H13: =F13/E13-1 -> 0.004362976194
B14: Нерезиденты | E14: 11453 | F14: 11523 | G14: =F14-E14 -> 70 | H14: =F14/E14-1 -> 0.006111935737
B15: Нерезиденты - физические лица | E15: 2056 | F15: 2074 | G15: 18 | H15: 0.008754863813
B16: Нерезиденты - юридические лица | E16: 9397 | F16: 9449 | G16: 52 | H16: 0.005533680962
B17: Клиенты, передавшие свои средства в ДУ | E17: 16968 | F17: 17003 | G17: =F17-E17 -> 35 | H17: =F17/E17-1 -> 0.002062706271
B18: Всего | E18: 1044504 | F18: 1051142 | G18: =F18-E18 -> 6638 | H18: =F18/E18-1 -> 0.006355169535
B21: Количество уникальных клиентов в Системе торгов: | H21: Таблица 2
B22: Группы клиентов | E22: =E11 -> 2012-08-31 | F22: =F11 -> 2012-09-30 | G22: Изменение (ед.) | H22: Изменение (%)
B23: Физические лица | E23: 791512 | F23: 796839 | G23: =F23-E23 -> 5327 | H23: =F23/E23-1 -> 0.006730156965
B24: Юридические лица | E24: 17475 | F24: 17573 | G24: =F24-E24 -> 98 | H24: =F24/E24-1 -> 0.005608011445
B25: Нерезиденты | E25: 5636 | F25: 5703 | G25: =F25-E25 -> 67 | H25: =F25/E25-1 -> 0.01188786373
B26: Нерезиденты - физические лица | E26: 1984 | F26: 1996 | G26: 12 | H26: 0.006048387097
B27: Нерезиденты - юридические лица | E27: 3652 | F27: 3707 | G27: 55 | H27: 0.01506024096
B28: Клиенты, передавшие свои средства в ДУ | E28: 5250 | F28: 5246 | G28: =F28-E28 -> -4 | H28: =F28/E28-1 -> -0.0007619047619
B29: Всего | E29: 819873 | F29: 825361 | G29: =F29-E29 -> 5488 | H29: =F29/E29-1 -> 0.006693719637
B32: Количество активных клиентов в Системе торгов (совершивших в течение месяца хотя бы одну сделку): | H32: Таблица 3
B33: Группы клиентов | E33: =EDATE(C6,-1) -> 2012-08-01 | F33: =EDATE(E33,1) -> 2012-09-01 | G33: Изменение (ед.) | H33: Изменение (%)
B34: Физические лица | E34: 68776 | F34: 75666 | G34: =F34-E34 -> 6890 | H34: =F34/E34-1 -> 0.1001802955
B35: Юридические лица | E35: 1493 | F35: 1579 | G35: =F35-E35 -> 86 | H35: =F35/E35-1 -> 0.05760214334
B36: Нерезиденты | E36: 664 | F36: 700 | G36: =F36-E36 -> 36 | H36: =F36/E36-1 -> 0.05421686747
B37: Нерезиденты - физические лица | E37: 164 | F37: 173 | G37: 9 | H37: 0.05487804878
B38: Нерезиденты - юридические лица | E38: 500 | F38: 527 | G38: 27 | H38: 0.054
B39: Клиенты, передавшие свои средства в ДУ | E39: 1013 | F39: 1031 | G39: =F39-E39 -> 18 | H39: =F39/E39-1 -> 0.01776900296
B40: Всего | E40: 71946 | F40: 78976 | G40: =F40-E40 -> 7030 | H40: =F40/E40-1 -> 0.09771217302
B44: Изменение количества уникальных клиентов - ретроспективные данные
B48: Количество уникальных клиентов в Системе торгов (ежегодная статистика): | H48: Таблица 1
B49: Группы клиентов | E49: 2008-12-31 | F49: 2009-12-31 | G49: 2010-12-31 | H49: 2011-12-31
B50: Физические лица | E50: 559320 | F50: 671475 | G50: 714295 | H50: 772175
B51: Юридические лица | E51: 14748 | F51: 16364 | G51: 17170 | H51: 16850
B52: Нерезиденты | E52: 3097 | F52: 3851 | G52: 4295 | H52: 5058
B53: Клиенты, передавшие свои средства в ДУ | E53: 4512 | F53: 4717 | G53: 5348 | H53: 5242
B54: Всего | E54: 581677 | F54: 696407 | G54: 741108 | H54: 799325
B82: Количество уникальных клиентов в Системе торгов (за последние 6 месяцев): | H82: Таблица 2
B83: Группы клиентов | C83: =EDATE(D83,-1) -> 2012-04-30 | D83: =EDATE(E83,-1) -> 2012-05-30 | E83: =EDATE(F83,-1) -> 2012-06-30 | F83: =EDATE(G83,-1) -> 2012-07-30 | G83: =EDATE(H83,-1) -> 2012-08-30 | H83: =EDATE(E11,1) -> 2012-09-30
B84: Физические лица | C84: 794030 | D84: 799942 | E84: 794477 | F84: 799804 | G84: 791512 | H84: 796839
B85: Юридические лица | C85: 17296 | D85: 17333 | E85: 17454 | F85: 17565 | G85: 17475 | H85: 17573
B86: Нерезиденты | C86: 5373 | D86: 5430 | E86: 5452 | F86: 5540 | G86: 5636 | H86: 5703
B87: Клиенты, передавшие свои средства в ДУ | C87: 5284 | D87: 5299 | E87: 5267 | F87: 5245 | G87: 5250 | H87: 5246
B88: Всего | C88: 821983 | D88: 828004 | E88: 822650 | F88: 828154 | G88: 819873 | H88: 825361
B124: Дополнительные показатели за | C124: 2012-09-28
H127: Таблица 1
B128: Участники торгов | G128: Абсолютные показатели
B129: Количество Участников торгов, имеющих зарегистрированных клиентов | G129: 708
B130: Количество Участников торгов, имеющих уникальных клиентов | G130: 708
B131: Количество Участников торгов, имеющих активных клиентов | G131: 477
B135: Списки ведущих операторов фондового рынка - клиенты Участников торгов за | F135: =C6 -> 2012-09-01
B138: Ведущие операторы рынка – число зарегистрированных клиентов | H138: Таблица 1
B139: Наименование Участника торгов | G139: Количество клиентов
B140: ВТБ 24 (ЗАО) | G140: 183 020
B141: ОАО «Сбербанк России» | G141: 169 494
B142: ЗАО «ФИНАМ» | G142: 115 838
B143: ООО «Компания БКС» | G143: 102 502
B144: ОАО «АЛЬФА-БАНК» | G144: 58 777
B145: ООО «АТОН» | G145: 41 696
B146: ФК «ОТКРЫТИЕ» | G146: 32 324
B147: ГК «АЛОР» | G147: 23 508
B148: ЗАО «Сбербанк КИБ» | G148: 19 589
B149: КИТ Финанс (ООО) | G149: 19 412
B152: Ведущие операторы рынка – число активных клиентов | H152: Таблица 2
B153: Наименование Участника торгов | G153: Количество клиентов
B154: ЗАО «ФИНАМ» | G154: 13 793
B155: ОАО «Сбербанк России» | G155: 12 867
B156: ООО «Компания БКС» | G156: 12 283
B157: ВТБ 24 (ЗАО) | G157: 7 717
B158: ОАО «АЛЬФА-БАНК» | G158: 4 915
B159: ООО «АТОН» | G159: 4 657
B160: ФК «ОТКРЫТИЕ» | G160: 3 399
B161: ЗАО «Сбербанк КИБ» | G161: 2 006
B162: ГК «АЛОР» | G162: 1 964
B163: ООО «НЭТТРЭЙДЕР» | G163: 1 838
B166: Ведущие операторы рынка – объем клиентских операций | H166: Таблица 3
B167: Наименование Участника торгов | G167: Торговый оборот, руб.
B168: ЗАО «Сбербанк КИБ» | G168: 1 012 034 902 257
B169: ИК «Ренессанс Капитал» | G169: 837 318 512 375
B170: ФК «ОТКРЫТИЕ» | G170: 631 158 334 284
B171: ООО «БК РЕГИОН» | G171: 560 683 328 478
B172: ООО «Компания БКС» | G172: 488 301 751 589
B173: ЗАО «ФИНАМ» | G173: 404 409 028 764
B174: ОАО «Промсвязьбанк» | G174: 402 795 428 012
B175: ООО «АТОН» | G175: 273 465 320 412
B176: ООО «ИК ВЕЛЕС Капитал» | G176: 217 084 704 424
B177: ГК «АЛОР» | G177: 178 628 423 418

Sheet Октябрь2012
B2: Клиенты Участников торгов Фондовой биржи ММВБ
B3: =EDATE(Сентябрь2012!B3,1) -> 2012-10-01
B6: Динамика количества клиентов за | C6: =B3 -> 2012-10-01
B10: Количество зарегистрированных клиентов в Системе торгов: | H10: Таблица 1
B11: Группы клиентов | E11: 2012-09-30 | F11: =EDATE(E11,1) -> 2012-10-30 | G11: Изменение (ед.) | H11: Изменение (%)
B12: Физические лица | E12: 988316 | F12: 997138 | G12: =F12-E12 -> 8822 | H12: =F12/E12-1 -> 0.008926294829
B13: Юридические лица | E13: 34300 | F13: 34577 | G13: =F13-E13 -> 277 | H13: =F13/E13-1 -> 0.008075801749
B14: Нерезиденты | E14: 11523 | F14: 11536 | G14: =F14-E14 -> 13 | H14: =F14/E14-1 -> 0.001128178426
B15: Нерезиденты - физические лица | E15: 2074 | F15: 2110 | G15: 36 | H15: 0.01735776278
B16: Нерезиденты - юридические лица | E16: 9449 | F16: 9426 | G16: -23 | H16: -0.002434120013
B17: Клиенты, передавшие свои средства в ДУ | E17: 17003 | F17: 16057 | G17: =F17-E17 -> -946 | H17: =F17/E17-1 -> -0.05563724049
B18: Всего | E18: 1051142 | F18: 1059308 | G18: =F18-E18 -> 8166 | H18: =F18/E18-1 -> 0.007768693478
B21: Количество уникальных клиентов в Системе торгов: | H21: Таблица 2
B22: Группы клиентов | E22: =E11 -> 2012-09-30 | F22: =F11 -> 2012-10-30 | G22: Изменение (ед.) | H22: Изменение (%)
B23: Физические лица | E23: 796839 | F23: 804740 | G23: =F23-E23 -> 7901 | H23: =F23/E23-1 -> 0.009915428336
B24: Юридические лица | E24: 17573 | F24: 17648 | G24: =F24-E24 -> 75 | H24: =F24/E24-1 -> 0.004267911
B25: Нерезиденты | E25: 5703 | F25: 5781 | G25: =F25-E25 -> 78 | H25: =F25/E25-1 -> 0.0136770121
B26: Нерезиденты - физические лица | E26: 1996 | F26: 2024 | G26: 28 | H26: 0.01402805611
B27: Нерезиденты - юридические лица | E27: 3707 | F27: 3757 | G27: 50 | H27: 0.01348799568
B28: Клиенты, передавшие свои средства в ДУ | E28: 5246 | F28: 5247 | G28: =F28-E28 -> 1 | H28: =F28/E28-1 -> 0.0001906214258
B29: Всего | E29: 825361 | F29: 833416 | G29: =F29-E29 -> 8055 | H29: =F29/E29-1 -> 0.009759365902
B32: Количество активных клиентов в Системе торгов (совершивших в течение месяца хотя бы одну сделку): | H32: Таблица 3
B33: Группы клиентов | E33: =EDATE(C6,-1) -> 2012-09-01 | F33: =EDATE(E33,1) -> 2012-10-01 | G33: Изменение (ед.) | H33: Изменение (%)
B34: Физические лица | E34: 75666 | F34: 69932 | G34: =F34-E34 -> -5734 | H34: =F34/E34-1 -> -0.07578040335
B35: Юридические лица | E35: 1579 | F35: 1554 | G35: =F35-E35 -> -25 | H35: =F35/E35-1 -> -0.01583280557
B36: Нерезиденты | E36: 700 | F36: 652 | G36: =F36-E36 -> -48 | H36: =F36/E36-1 -> -0.06857142857
B37: Нерезиденты - физические лица | E37: 173 | F37: 146 | G37: -27 | H37: -0.1560693642
B38: Нерезиденты - юридические лица | E38: 527 | F38: 506 | G38: -21 | H38: -0.03984819734
B39: Клиенты, передавшие свои средства в ДУ | E39: 1031 | F39: 1190 | G39: =F39-E39 -> 159 | H39: =F39/E39-1 -> 0.1542192047
B40: Всего | E40: 78976 | F40: 73328 | G40: =F40-E40 -> -5648 | H40: =F40/E40-1 -> -0.07151539708
B44: Изменение количества уникальных клиентов - ретроспективные данные
B48: Количество уникальных клиентов в Системе торгов (ежегодная статистика): | H48: Таблица 1
B49: Группы клиентов | E49: 2008-12-31 | F49: 2009-12-31 | G49: 2010-12-31 | H49: 2011-12-31
B50: Физические лица | E50: 559320 | F50: 671475 | G50: 714295 | H50: 772175
B51: Юридические лица | E51: 14748 | F51: 16364 | G51: 17170 | H51: 16850
B52: Нерезиденты | E52: 3097 | F52: 3851 | G52: 4295 | H52: 5058
B53: Клиенты, передавшие свои средства в ДУ | E53: 4512 | F53: 4717 | G53: 5348 | H53: 5242
B54: Всего | E54: 581677 | F54: 696407 | G54: 741108 | H54: 799325
B82: Количество уникальных клиентов в Системе торгов (за последние 6 месяцев): | H82: Таблица 2
B83: Группы клиентов | C83: =EDATE(D83,-1) -> 2012-05-30 | D83: =EDATE(E83,-1) -> 2012-06-30 | E83: =EDATE(F83,-1) -> 2012-07-30 | F83: =EDATE(G83,-1) -> 2012-08-30 | G83: =EDATE(H83,-1) -> 2012-09-30 | H83: =EDATE(E11,1) -> 2012-10-30
B84: Физические лица | C84: 799942 | D84: 794477 | E84: 799804 | F84: 791512 | G84: 796839 | H84: 804740
B85: Юридические лица | C85: 17333 | D85: 17454 | E85: 17565 | F85: 17475 | G85: 17573 | H85: 17648
B86: Нерезиденты | C86: 5430 | D86: 5452 | E86: 5540 | F86: 5636 | G86: 5703 | H86: 5781
B87: Клиенты, передавшие свои средства в ДУ | C87: 5299 | D87: 5267 | E87: 5245 | F87: 5250 | G87: 5246 | H87: 5247
B88: Всего | C88: 828004 | D88: 822650 | E88: 828154 | F88: 819873 | G88: 825361 | H88: 833416
B124: Дополнительные показатели за | C124: 2012-10-31
H127: Таблица 1
B128: Участники торгов | G128: Абсолютные показатели
B129: Количество Участников торгов, имеющих зарегистрированных клиентов | G129: 708
B130: Количество Участников торгов, имеющих уникальных клиентов | G130: 708
B131: Количество Участников торгов, имеющих активных клиентов | G131: 478
B135: Списки ведущих операторов фондового рынка - клиенты Участников торгов за | F135: =C6 -> 2012-10-01
B138: Ведущие операторы рынка – число зарегистрированных клиентов | H138: Таблица 1
B139: Наименование Участника торгов | G139: Количество клиентов
B140: ВТБ 24 (ЗАО) | G140: 184 576
B141: ОАО «Сбербанк России» | G141: 170 695
B142: ЗАО «ФИНАМ» | G142: 117 026
B143: ФГ БКС | G143: 103 247
B144: ОАО «АЛЬФА-БАНК» | G144: 59 074
B145: ООО «АТОН» | G145: 41 888
B146: ФК «ОТКРЫТИЕ» | G146: 32 827
B147: ГК «АЛОР» | G147: 26 198
B148: КИТ Финанс (ООО) | G148: 19 475
B149: ООО «Инвестиционная палата» | G149: 19 224
B152: Ведущие операторы рынка – число активных клиентов | H152: Таблица 2
B153: Наименование Участника торгов | G153: Количество клиентов
B154: ЗАО «ФИНАМ» | G154: 12 809
B155: ОАО «Сбербанк России» | G155: 12 235
B156: ФГ БКС | G156: 11 009
B157: ВТБ 24 (ЗАО) | G157: 7 078
B158: ОАО «АЛЬФА-БАНК» | G158: 4 598
B159: ООО «АТОН» | G159: 4 320
B160: ФК «ОТКРЫТИЕ» | G160: 3 178
B161: ГК «АЛОР» | G161: 1 941
B162: ООО «НЭТТРЭЙДЕР» | G162: 1 713
B163: КИТ Финанс (ООО) | G163: 1 636
B166: Ведущие операторы рынка – объем клиентских операций | H166: Таблица 3
B167: Наименование Участника торгов | G167: Торговый оборот, руб.
B168: ЗАО «Сбербанк КИБ» | G168: 1 153 876 893 195
B169: ИК «Ренессанс Капитал» | G169: 814 779 022 643
B170: ФК «ОТКРЫТИЕ» | G170: 702 353 735 042
B171: ФГ БКС | G171: 485 184 413 878
B172: ОАО «Промсвязьбанк» | G172: 476 569 803 182
B173: ЗАО «ФИНАМ» | G173: 419 649 676 499
B174: ООО «БК РЕГИОН» | G174: 417 514 356 800
B175: ООО «АТОН» | G175: 287 382 549 655
B176: ООО «РОНИН» | G176: 256 176 908 235
B177: ООО «ИК ВЕЛЕС Капитал» | G177: 250 222 720 201

Sheet Ноябрь2012
B2: Клиенты Участников торгов Фондовой биржи ММВБ
B3: =EDATE(Октябрь2012!B3,1) -> 2012-11-01
B6: Динамика количества клиентов за | C6: =B3 -> 2012-11-01
B10: Количество зарегистрированных клиентов в Системе торгов: | H10: Таблица 1
B11: Группы клиентов | E11: 2012-10-31 | F11: =EDATE(E11,1) -> 2012-11-30 | G11: Изменение (ед.) | H11: Изменение (%)
B12: Физические лица | E12: 997138 | F12: 1011071 | G12: =F12-E12 -> 13933 | H12: =F12/E12-1 -> 0.0139729907
B13: Юридические лица | E13: 34577 | F13: 34805 | G13: =F13-E13 -> 228 | H13: =F13/E13-1 -> 0.006593978656
B14: Нерезиденты | E14: 11536 | F14: 12071 | G14: =F14-E14 -> 535 | H14: =F14/E14-1 -> 0.04637656033
B15: Нерезиденты - физические лица | E15: 2110 | F15: 2138 | G15: 28 | H15: 0.01327014218
B16: Нерезиденты - юридические лица | E16: 9426 | F16: 9933 | G16: 507 | H16: 0.05378739656
B17: Клиенты, передавшие свои средства в ДУ | E17: 16057 | F17: 17182 | G17: =F17-E17 -> 1125 | H17: =F17/E17-1 -> 0.07006290092
B18: Всего | E18: 1059308 | F18: 1075129 | G18: =F18-E18 -> 15821 | H18: =F18/E18-1 -> 0.01493522186
B21: Количество уникальных клиентов в Системе торгов: | H21: Таблица 2
B22: Группы клиентов | E22: =E11 -> 2012-10-31 | F22: =F11 -> 2012-11-30 | G22: Изменение (ед.) | H22: Изменение (%)
B23: Физические лица | E23: 804740 | F23: 815485 | G23: =F23-E23 -> 10745 | H23: =F23/E23-1 -> 0.01335213858
B24: Юридические лица | E24: 17648 | F24: 17752 | G24: =F24-E24 -> 104 | H24: =F24/E24-1 -> 0.005893019039
B25: Нерезиденты | E25: 5781 | F25: 5845 | G25: =F25-E25 -> 64 | H25: =F25/E25-1 -> 0.01107074901
B26: Нерезиденты - физические лица | E26: 2024 | F26: 2051 | G26: 27 | H26: 0.01333992095
B27: Нерезиденты - юридические лица | E27: 3757 | F27: 2051 | G27: -1706 | H27: -0.4540857067
B28: Клиенты, передавшие свои средства в ДУ | E28: 5247 | F28: 5266 | G28: =F28-E28 -> 19 | H28: =F28/E28-1 -> 0.003621116829
B29: Всего | E29: 833416 | F29: 844348 | G29: =F29-E29 -> 10932 | H29: =F29/E29-1 -> 0.01311709878
B32: Количество активных клиентов в Системе торгов (совершивших в течение месяца хотя бы одну сделку): | H32: Таблица 3
B33: Группы клиентов | E33: =EDATE(C6,-1) -> 2012-10-01 | F33: =EDATE(E33,1) -> 2012-11-01 | G33: Изменение (ед.) | H33: Изменение (%)
B34: Физические лица | E34: 69932 | F34: 68887 | G34: =F34-E34 -> -1045 | H34: =F34/E34-1 -> -0.01494308757
B35: Юридические лица | E35: 1554 | F35: 1463 | G35: =F35-E35 -> -91 | H35: =F35/E35-1 -> -0.05855855856
B36: Нерезиденты | E36: 652 | F36: 643 | G36: =F36-E36 -> -9 | H36: =F36/E36-1 -> -0.01380368098
B37: Нерезиденты - физические лица | E37: 146 | F37: 151 | G37: 5 | H37: 0.03424657534
B38: Нерезиденты - юридические лица | E38: 506 | F38: 492 | G38: -14 | H38: -0.02766798419
B39: Клиенты, передавшие свои средства в ДУ | E39: 1190 | F39: 1084 | G39: =F39-E39 -> -106 | H39: =F39/E39-1 -> -0.08907563025
B40: Всего | E40: 73328 | F40: 72077 | G40: =F40-E40 -> -1251 | H40: =F40/E40-1 -> -0.01706033166
B44: Изменение количества уникальных клиентов - ретроспективные данные
B48: Количество уникальных клиентов в Системе торгов (ежегодная статистика): | H48: Таблица 1
B49: Группы клиентов | E49: 2008-12-31 | F49: 2009-12-31 | G49: 2010-12-31 | H49: 2011-12-31
B50: Физические лица | E50: 559320 | F50: 671475 | G50: 714295 | H50: 772175
B51: Юридические лица | E51: 14748 | F51: 16364 | G51: 17170 | H51: 16850
B52: Нерезиденты | E52: 3097 | F52: 3851 | G52: 4295 | H52: 5058
B53: Клиенты, передавшие свои средства в ДУ | E53: 4512 | F53: 4717 | G53: 5348 | H53: 5242
B54: Всего | E54: 581677 | F54: 696407 | G54: 741108 | H54: 799325
B82: Количество уникальных клиентов в Системе торгов (за последние 6 месяцев): | H82: Таблица 2
B83: Группы клиентов | C83: =EDATE(D83,-1) -> 2012-06-30 | D83: =EDATE(E83,-1) -> 2012-07-30 | E83: =EDATE(F83,-1) -> 2012-08-30 | F83: =EDATE(G83,-1) -> 2012-09-30 | G83: =EDATE(H83,-1) -> 2012-10-30 | H83: =EDATE(E11,1) -> 2012-11-30
B84: Физические лица | C84: 794477 | D84: 799804 | E84: 791512 | F84: 796839 | G84: 804740 | H84: 815485
B85: Юридические лица | C85: 17454 | D85: 17565 | E85: 17475 | F85: 17573 | G85: 17648 | H85: 17752
B86: Нерезиденты | C86: 5452 | D86: 5540 | E86: 5636 | F86: 5703 | G86: 5781 | H86: 5845
B87: Клиенты, передавшие свои средства в ДУ | C87: 5267 | D87: 5245 | E87: 5250 | F87: 5246 | G87: 5247 | H87: 5266
B88: Всего | C88: 822650 | D88: 828154 | E88: 819873 | F88: 825361 | G88: 833416 | H88: 844348
B124: Дополнительные показатели за | C124: 2012-11-30
H127: Таблица 1
B128: Участники торгов | G128: Абсолютные показатели
B129: Количество Участников торгов, имеющих зарегистрированных клиентов | G129: 710
B130: Количество Участников торгов, имеющих уникальных клиентов | G130: 710
B131: Количество Участников торгов, имеющих активных клиентов | G131: 475
B135: Списки ведущих операторов фондового рынка - клиенты Участников торгов за | F135: =C6 -> 2012-11-01
B138: Ведущие операторы рынка – число зарегистрированных клиентов | H138: Таблица 1
B139: Наименование Участника торгов | G139: Количество клиентов
B140: ВТБ 24 (ЗАО) | G140: 186 095
B141: ОАО «Сбербанк России» | G141: 172 148
B142: ЗАО «ФИНАМ» | G142: 117 696
B143: ФГ БКС | G143: 104 228
B144: ОАО «АЛЬФА-БАНК» | G144: 59 347
B145: ООО «АТОН» | G145: 42 016
B146: ФК «ОТКРЫТИЕ» | G146: 33 354
B147: ГК «АЛОР» | G147: 27 512
B148: КИТ Финанс (ООО) | G148: 19 565
B149: ООО «Инвестиционная палата» | G149: 19 258
B152: Ведущие операторы рынка – число активных клиентов | H152: Таблица 2
B153: Наименование Участника торгов | G153: Количество клиентов
B154: ОАО «Сбербанк России» | G154: 12 962
B155: ЗАО «ФИНАМ» | G155: 12 196
B156: ФГ БКС | G156: 10 553
B157: ВТБ 24 (ЗАО) | G157: 7 115
B158: ОАО «АЛЬФА-БАНК» | G158: 4 496
B159: ООО «АТОН» | G159: 4 131
B160: ФК «ОТКРЫТИЕ» | G160: 3 180
B161: ГК «АЛОР» | G161: 1 841
B162: ООО «НЭТТРЭЙДЕР» | G162: 1 594
B163: КИТ Финанс (ООО) | G163: 1 586
B166: Ведущие операторы рынка – объем клиентских операций | H166: Таблица 3
B167: Наименование Участника торгов | G167: Торговый оборот, руб.
B168: ЗАО «Сбербанк КИБ» | G168: 1 231 292 524 840
B169: ФК «ОТКРЫТИЕ» | G169: 844 685 273 270
B170: ИК «Ренессанс Капитал» | G170: 722 317 396 949
B171: ФГ БКС | G171: 476 272 433 347
B172: ЗАО «ФИНАМ» | G172: 403 311 089 451
B173: ОАО «Промсвязьбанк» | G173: 372 171 483 912
B174: ООО «АТОН» | G174: 243 148 443 720
B175: ООО «РОНИН» | G175: 226 910 897 729
B176: ООО «ИК ВЕЛЕС Капитал» | G176: 215 812 091 820
B177: ООО «БК РЕГИОН» | G177: 190 236 669 706

Sheet Декабрь2012
B2: Клиенты Участников торгов Фондовой биржи ММВБ
B3: =EDATE(Ноябрь2012!B3,1) -> 2012-12-01
B6: Динамика количества клиентов за | C6: =B3 -> 2012-12-01
B10: Количество зарегистрированных клиентов в Системе торгов: | H10: Таблица 1
B11: Группы клиентов | E11: 2012-11-30 | F11: =EDATE(E11,1) -> 2012-12-30 | G11: Изменение (ед.) | H11: Изменение (%)
B12: Физические лица | E12: 1011071 | F12: 992397 | G12: =F12-E12 -> -18674 | H12: =F12/E12-1 -> -0.0184695239
B13: Юридические лица | E13: 34805 | F13: 34954 | G13: =F13-E13 -> 149 | H13: =F13/E13-1 -> 0.00428099411
B14: Нерезиденты | E14: 12071 | F14: 12200 | G14: 129 | H14: 0.01068676994
B15: Нерезиденты - физические лица | E15: 2138 | F15: 2163 | G15: 25 | H15: 0.01169317119
B16: Нерезиденты - юридические лица | E16: 9933 | F16: 10037 | G16: 104 | H16: 0.01047015001
B17: Клиенты, передавшие свои средства в ДУ | E17: 17182 | F17: 15799 | G17: -1383 | H17: -0.08049121173
B18: Всего | E18: 1075129 | F18: 1055350 | G18: -19779 | H18: -0.01839686214
B21: Количество уникальных клиентов в Системе торгов: | H21: Таблица 2
B22: Группы клиентов | E22: =E11 -> 2012-11-30 | F22: =F11 -> 2012-12-30 | G22: Изменение (ед.) | H22: Изменение (%)
B23: Физические лица | E23: 815485 | F23: 805549 | G23: =F23-E23 -> -9936 | H23: =F23/E23-1 -> -0.01218416035
B24: Юридические лица | E24: 17752 | F24: 17821 | G24: =F24-E24 -> 69 | H24: =F24/E24-1 -> 0.003886885985
B25: Нерезиденты | E25: 5845 | F25: 5876 | G25: =F25-E25 -> 31 | H25: =F25/E25-1 -> 0.005303678358
B26: Нерезиденты - физические лица | E26: 2051 | F26: 2073 | G26: 27 | H26: 0.01333992095
B27: Нерезиденты - юридические лица | E27: 2051 | F27: 3803 | G27: -1706 | H27: -0.4540857067
B28: Клиенты, передавшие свои средства в ДУ | E28: 5266 | F28: 5261 | G28: =F28-E28 -> -5 | H28: =F28/E28-1 -> -0.0009494872769
B29: Всего | E29: 844348 | F29: 834507 | G29: =F29-E29 -> -9841 | H29: =F29/E29-1 -> -0.01165514693
B32: Количество активных клиентов в Системе торгов (совершивших в течение месяца хотя бы одну сделку): | H32: Таблица 3
B33: Группы клиентов | E33: =EDATE(C6,-1) -> 2012-11-01 | F33: =EDATE(E33,1) -> 2012-12-01 | G33: Изменение (ед.) | H33: Изменение (%)
B34: Физические лица | E34: 68887 | F34: 70302 | G34: =F34-E34 -> 1415 | H34: =F34/E34-1 -> 0.0205408858
B35: Юридические лица | E35: 1463 | F35: 1613 | G35: =F35-E35 -> 150 | H35: =F35/E35-1 -> 0.1025290499
B36: Нерезиденты | E36: 643 | F36: 666 | G36: =F36-E36 -> 23 | H36: =F36/E36-1 -> 0.03576982893
B37: Нерезиденты - физические лица | E37: 151 | F37: 160 | G37: 5 | H37: 0.03424657534
B38: Нерезиденты - юридические лица | E38: 492 | F38: 506 | G38: -14 | H38: -0.02766798419
B39: Клиенты, передавшие свои средства в ДУ | E39: 1084 | F39: 944 | G39: =F39-E39 -> -140 | H39: =F39/E39-1 -> -0.1291512915
B40: Всего | E40: 72077 | F40: 73525 | G40: =F40-E40 -> 1448 | H40: =F40/E40-1 -> 0.02008962637
B44: Изменение количества уникальных клиентов - ретроспективные данные
B48: Количество уникальных клиентов в Системе торгов (ежегодная статистика): | H48: Таблица 1
B49: Группы клиентов | E49: 2009-12-31 | F49: 2010-12-31 | G49: 2011-12-31 | H49: 2012-12-31
B50: Физические лица | E50: 671475 | F50: 714295 | G50: 772175 | H50: 805549
B51: Юридические лица | E51: 16364 | F51: 17170 | G51: 16850 | H51: 17821
B52: Нерезиденты | E52: 3851 | F52: 4295 | G52: 5058 | H52: 5876
B53: Клиенты, передавшие свои средства в ДУ | E53: 4717 | F53: 5348 | G53: 5242 | H53: 5261
B54: Всего | E54: 696407 | F54: 741108 | G54: 799325 | H54: 834507
B82: Количество уникальных клиентов в Системе торгов (за последние 6 месяцев): | H82: Таблица 2
B83: Группы клиентов | C83: =EDATE(D83,-1) -> 2012-07-30 | D83: =EDATE(E83,-1) -> 2012-08-30 | E83: =EDATE(F83,-1) -> 2012-09-30 | F83: =EDATE(G83,-1) -> 2012-10-30 | G83: =EDATE(H83,-1) -> 2012-11-30 | H83: =EDATE(E11,1) -> 2012-12-30
B84: Физические лица | C84: 799804 | D84: 791512 | E84: 796839 | F84: 804740 | G84: 815485 | H84: 805549
B85: Юридические лица | C85: 17565 | D85: 17475 | E85: 17573 | F85: 17648 | G85: 17752 | H85: 17821
B86: Нерезиденты | C86: 5540 | D86: 5636 | E86: 5703 | F86: 5781 | G86: 5845 | H86: 5876
B87: Клиенты, передавшие свои средства в ДУ | C87: 5245 | D87: 5250 | E87: 5246 | F87: 5247 | G87: 5266 | H87: 5261
B88: Всего | C88: 828154 | D88: 819873 | E88: 825361 | F88: 833416 | G88: 844348 | H88: 834507
B124: Дополнительные показатели за | C124: 2012-12-31
H127: Таблица 1
B128: Участники торгов | G128: Абсолютные показатели
B129: Количество Участников торгов, имеющих зарегистрированных клиентов | G129: 813
B130: Количество Участников торгов, имеющих уникальных клиентов | G130: 813
B131: Количество Участников торгов, имеющих активных клиентов | G131: 480
B135: Списки ведущих операторов фондового рынка - клиенты Участников торгов за | F135: =C6 -> 2012-12-01
B138: Ведущие операторы рынка – число зарегистрированных клиентов | H138: Таблица 1
B139: Наименование Участника торгов | G139: Количество клиентов
B140: ВТБ 24 (ЗАО) | G140: 187959
B141: ОАО «Сбербанк России» | G141: 172520
B142: ЗАО «ФИНАМ» | G142: 118202
B143: ФГ БКС | G143: 104683
B144: ОАО «АЛЬФА-БАНК» | G144: 59543
B145: ООО «АТОН» | G145: 42147
B146: ФК «ОТКРЫТИЕ» | G146: 33738
B147: ГК «АЛОР» | G147: 28427
B148: КИТ Финанс (ООО) | G148: 19623
B149: ООО «Инвестиционная палата» | G149: 19310
B152: Ведущие операторы рынка – число активных клиентов | H152: Таблица 2
B153: Наименование Участника торгов | G153: Количество клиентов
B154: ОАО «Сбербанк России» | G154: 13968
B155: ЗАО «ФИНАМ» | G155: 11978
B156: ФГ БКС | G156: 10901
B157: ВТБ 24 (ЗАО) | G157: 6838
B158: ОАО «АЛЬФА-БАНК» | G158: 4331
B159: ООО «АТОН» | G159: 4160
B160: ФК «ОТКРЫТИЕ» | G160: 3287
B161: ГК «АЛОР» | G161: 1966
B162: ООО «НЭТТРЭЙДЕР» | G162: 1795
B163: КИТ Финанс (ООО) | G163: 1579
B166: Ведущие операторы рынка – объем клиентских операций | H166: Таблица 3
B167: Наименование Участника торгов | G167: Торговый оборот, руб.
B168: ЗАО «Сбербанк КИБ» | G168: 1049103675339
B169: ФК «ОТКРЫТИЕ» | G169: 753785750013
B170: ИК «Ренессанс Капитал» | G170: 700395025614
B171: ФГ БКС | G171: 431675562539
B172: ЗАО «ФИНАМ» | G172: 368516381057
B173: ОАО «Промсвязьбанк» | G173: 350111225875
B174: ООО «АТОН» | G174: 276661219719
B175: ООО «БК РЕГИОН» | G175: 219687972557
B176: ООО «ИК ВЕЛЕС Капитал» | G176: 218842734592
B177: ООО «РОНИН» | G177: 216413970235

Sheet Лист1
